Workbook

Sheet Vista Principal
B2: Simulador de Préstamos Personales - Scotiabank
B7: Por favor ingrese los siguientes datos:
B9: Producto | C9: Préstamos Personales (DXP)
B10: Tipo de Seguro | C10: Seguro de Vida | D10: Seleccionar
B11: Tarifa | C11: TARIFA TITULAR | D11: Seleccionar
B12: Monto inicial | C12: 75000 | D12: Digitar
B13: Seguro Desempleo (en caso aplique, ingresar la tasa)¹ | D13: Digitar en caso aplique
B14: Monto adicional desempleo | C14: =+H17 -> 0
B15: Prima de Seguro de Desgravamen/Vida | C15: =IF(C10="EXONERADO",0%,IF(C10="Sin Seguro",0%,IF(C10="Seguro de vida",'Proceso Prima de Seguro'!D13,IF(AND(C10="Sin Seguro (Solo LD Garantía Liquida)",C9="Préstamos Personales (LD Garantía Liquida)"),0%,'Proceso Prima de Seguro'!H16)))) -> 0.042
B16: Monto adicional del Seguro | C16: =+C15*C12 -> 3150 | G16: MAF SIN SEGURO | H16: MONTO SEGURO DESEMNPLEO | I16: MAF CON DESEMBPLEP
B17: Monto Total a Financiar | C17: =+I17 -> 78150 | G17: =+C12+C16 -> 78150 | H17: =+G17*C13 -> 0 | I17: =+H17+G17 -> 78150
B18: Empleado | C18: NO
B19: Moneda | C19: Soles | D19: Seleccionar
B20: Plazo (cuotas) | C20: 60 | D20: Digitar
B21: Fecha de Desembolso | C21: 2025-09-02
B22: Fecha de 1er Pago | C22: 2025-11-10 | D22: Digitar
B23: Cuota Julio (Digitar 2 en caso de cuota doble) | C23: 1 | D23: Digitar 2 en caso de cuota doble
B24: Cuota Diciembre (Digitar 2 en caso de cuota doble) | C24: 1 | D24: Digitar 2 en caso de cuota doble
B25: TEA fija | C25: 0.15 | D25: Digitar
B26: TEA TOTAL | C26: =+C25 -> 0.15
B27: Monto del Bien | C27: 0
B28: Seguro del Bien | C28: 0
B29: Envío de Estado de Cuenta (Digital: S/0 - Físico S/11) | C29: 0 | D29: Digitar
B30: Cuota a pagar | C30: =(C17+(C28*C27+C29)*P34)/O34 -> 1856.30244
B31: 2) Calcular TCEA presionando el botón
B32: TCEA | C32: 0.1701471986
C33: Para volver a calcular,debes borrar la TCEA | U33: =C17-U34-C14-C16 -> 2.910383046e-11
B34: Importante: La tasa efectiva anual (TEA) debe registrarse de acuerdo al tarifario vigente. ¹ De acuerdo al tarifario vigente de Seguros Optativos (Tarifario N°46 de Agencias y en Otras Tarifas en Medios Virtuales). Las cuotas son referenciales, sujetas a calificación y a la fecha de desembolso del crédito y no incluyen ITF. El crédito está sujeto a evaluación crediticia. Tener en cuenta que toda la información de este simulador tiene carácter referencial y depende de la evaluación mencionada. Endoso de seguro: El cliente puede endosar su póliza de seguro a favor del banco, siempre que cumpla con los requisitos establecidos por la entidad financiera. | O34: =SUM(O36:O395) -> 42.09982076 | P34: =SUM(P36:P395) -> 42.09982076 | U34: =SUM(U36:U395) -> 75000
B35: N° Cuota | C35: Fecha de pago | D35: Día | E35: Fecha de pago | F35: Días | G35: Dias Acumulados | H35: Saldo Inicial | I35: Amortización | J35: Interés | K35: Seguro del Bien | L35: Portes | M35: Cuota Constante | N35: Saldo Final | O35: Factor Cronograma | P35: Factor Cronograma 2 | R35: Vector i,1 Cuota | S35: Vector i,2 Días Acum | T35: Vector i,3 Factor | U35: Vector i,4 Calculo VA
B36: 1 | C36: =C22 -> 2025-11-10 | D36: =IF(B36<=$C$20,WEEKDAY(C36,2),"") -> 1 | E36: =IF(D36=7,C36+1,C36) -> 2025-11-10 | F36: =E36-C21 -> 69 | G36: =F36 -> 69 | H36: =C17 -> 78150 | I36: =IF(B36>C$20,"",M36-L36-K36-J36) -> -265.4482956 | J36: =IF(B36>C$20,"",((1+C$25)^(F36/360)-1)*H36) -> 2121.750736 | K36: =IF(B36>C$20,"",C$27*C$28) -> 0 | L36: =IF(B36>C$20,"",C$29) -> 0 | M36: =IF(B36>C$20,"",IF(B36=C$20,H36+J36+K36+L36,IF(AND(C$23=2,MONTH(C36)=7),2*C$30,IF(AND(C$24=2,MONTH(C36)=12),2*C$30,C$30)))) -> 1856.30244 | N36: =IF(B36>C$20,"",H36-I36) -> 78415.4483 | O36: =IFERROR(IF(AND(MONTH(C36)=7,C$23=2),2/(1+C$26)^(G36/360),IF(AND(MONTH(C36)=12,C$24=2),2/(1+C$26)^(G36/360),1/(1+C$26)^(G36/360))),"") -> 0.9735679026 | P36: =IFERROR(1/(1+C$26)^(G36/360),"") -> 0.9735679026 | R36: =IFERROR(I36+J36+K36+L36,"") -> 1856.30244 | S36: =G36 -> 69 | T36: =IFERROR((1+C$32)^(S36/360),"") -> 1.030574586 | U36: =IFERROR(ROUND(R36/T36,2),"") -> 1801.23
B37: 2 | C37: =IF(B37>$C$20,"",EDATE(C36,1)) -> 2025-12-10 | D37: 3 | E37: =IF(D37=7,C37+1,C37) -> 2025-12-10 | F37: =IF(B37>C$20,"",E37-E36) -> 30 | G37: =IFERROR(F37+G36,"") -> 99 | H37: =IF(B37>C$20,"",N36) -> 78415.4483 | I37: =IF(B37>C$20,"",M37-L37-K37-J37) -> 937.6719779 | J37: 918.630462 | K37: 0 | L37: 0 | M37: =IF(B37>C$20,"",IF(B37=C$20,H37+J37+K37+L37,IF(AND(C$23=2,MONTH(C37)=7),2*C$30,IF(AND(C$24=2,MONTH(C37)=12),2*C$30,C$30)))) -> 1856.30244 | N37: 77477.77632 | O37: =IFERROR(IF(AND(MONTH(C37)=7,C$23=2),2/(1+C$26)^(G37/360),IF(AND(MONTH(C37)=12,C$24=2),2/(1+C$26)^(G37/360),1/(1+C$26)^(G37/360))),"") -> 0.9622947001 | P37: 0.9622947001 | R37: =IFERROR(I37+J37+K37+L37,"") -> 1856.30244 | S37: 99 | T37: 1.044157799 | U37: 1777.8
B38: 3 | C38: 2026-01-10 | D38: 6 | E38: 2026-01-10 | F38: 31 | G38: 130 | H38: 77477.77632 | I38: 918.2194337 | J38: 938.0830063 | K38: 0 | L38: 0 | M38: 1856.30244 | N38: 76559.55688 | O38: 0.9507828413 | P38: 0.9507828413 | R38: 1856.30244 | S38: 130 | T38: 1.058381894 | U38: 1753.91
B39: 4 | C39: 2026-02-10 | D39: =IF(B39<=$C$20,WEEKDAY(C39,2),"") -> 2 | E39: =IF(D39=7,C39+1,C39) -> 2026-02-10 | F39: 31 | G39: =IFERROR(F39+G38,"") -> 161 | H39: 76559.55688 | I39: 929.3370223 | J39: 926.9654176 | K39: 0 | L39: 0 | M39: 1856.30244 | N39: 75630.21986 | O39: 0.9394086979 | P39: 0.9394086979 | R39: 1856.30244 | S39: 161 | T39: 1.072799758 | U39: 1730.33
B40: 5 | C40: 2026-03-10 | D40: 2 | E40: 2026-03-10 | F40: 28 | G40: 189 | H40: 75630.21986 | I40: 1029.689059 | J40: 826.6133806 | K40: 0 | L40: 0 | M40: 1856.30244 | N40: 74600.5308 | O40: 0.9292522767 | P40: 0.9292522767 | R40: 1856.30244 | S40: 189 | T40: 1.085991087 | U40: 1709.32
B41: 6 | C41: 2026-04-10 | D41: 5 | E41: 2026-04-10 | F41: 31 | G41: 220 | H41: 74600.5308 | I41: 953.0564573 | J41: 903.2459827 | K41: 0 | L41: 0 | M41: 1856.30244 | N41: 73647.47435 | O41: 0.9181357019 | P41: 0.9181357019 | R41: 1856.30244 | S41: 220 | T41: 1.100785059 | U41: 1686.34
B42: 7 | C42: 2026-05-10 | D42: 7 | E42: 2026-05-11 | F42: 31 | G42: 251 | H42: 73647.47435 | I42: 964.5958446 | J42: 891.7065954 | K42: 0 | L42: 0 | M42: 1856.30244 | N42: 72682.8785 | O42: 0.9071521138 | P42: 0.9071521138 | R42: 1856.30244 | S42: 251 | T42: 1.115780562 | U42: 1663.68
B43: 8 | C43: 2026-06-10 | D43: 3 | E43: 2026-06-10 | F43: 30 | G43: 281 | H43: 72682.8785 | I43: 1004.828557 | J43: 851.4738831 | K43: 0 | L43: 0 | M43: 1856.30244 | N43: 71678.04994 | O43: 0.8966479574 | P43: 0.8966479574 | R43: 1856.30244 | S43: 281 | T43: 1.130486809 | U43: 1642.04
B44: 9 | C44: 2026-07-10 | D44: 5 | E44: 2026-07-10 | F44: 30 | G44: 311 | H44: 71678.04994 | I44: 1016.60004 | J44: 839.7024001 | K44: 0 | L44: 0 | M44: 1856.30244 | N44: 70661.4499 | O44: 0.8862654315 | P44: 0.8862654315 | R44: 1856.30244 | S44: 311 | T44: 1.145386888 | U44: 1620.68
B45: 10 | C45: 2026-08-10 | D45: 1 | E45: 2026-08-10 | F45: 31 | G45: 342 | H45: 70661.4499 | I45: 1000.749938 | J45: 855.5525017 | K45: 0 | L45: 0 | M45: 1856.30244 | N45: 69660.69997 | O45: 0.8756631051 | P45: 0.8756631051 | R45: 1856.30244 | S45: 342 | T45: 1.160989982 | U45: 1598.9
B46: 11 | C46: 2026-09-10 | D46: 4 | E46: 2026-09-10 | F46: 31 | G46: 373 | H46: 69660.69997 | I46: 1012.866787 | J46: 843.4356528 | K46: 0 | L46: 0 | M46: 1856.30244 | N46: 68647.83318 | O46: 0.8651876135 | P46: 0.8651876135 | R46: 1856.30244 | S46: 373 | T46: 1.17680563 | U46: 1577.41
B47: 12 | C47: 2026-10-10 | D47: 6 | E47: 2026-10-10 | F47: 30 | G47: 403 | H47: 68647.83318 | I47: 1052.098778 | J47: 804.2036624 | K47: 0 | L47: 0 | M47: 1856.30244 | N47: 67595.7344 | O47: 0.8551693753 | P47: 0.8551693753 | R47: 1856.30244 | S47: 403 | T47: 1.192316202 | U47: 1556.89
B48: 13 | C48: 2026-11-10 | D48: 2 | E48: 2026-11-10 | F48: 31 | G48: 434 | H48: 67595.7344 | I48: 1037.868913 | J48: 818.433527 | K48: 0 | L48: 0 | M48: 1856.30244 | N48: 66557.86549 | O48: 0.8449390486 | P48: 0.8449390486 | R48: 1856.30244 | S48: 434 | T48: 1.208558593 | U48: 1535.96
B49: 14 | C49: 2026-12-10 | D49: 4 | E49: 2026-12-10 | F49: 30 | G49: 464 | H49: 66557.86549 | I49: 1076.582575 | J49: 779.7198646 | K49: 0 | L49: 0 | M49: 1856.30244 | N49: 65481.28291 | O49: 0.8351552739 | P49: 0.8351552739 | R49: 1856.30244 | S49: 464 | T49: 1.224487677 | U49: 1515.98
B50: 15 | C50: 2027-01-10 | D50: 7 | E50: 2027-01-11 | F50: 32 | G50: 496 | H50: 65481.28291 | I50: 1037.735766 | J50: 818.5666741 | K50: 0 | L50: 0 | M50: 1856.30244 | N50: 64443.54715 | O50: 0.824844085 | P50: 0.824844085 | R50: 1856.30244 | S50: 496 | T50: 1.241710177 | U50: 1494.96
B51: 16 | C51: 2027-02-10 | D51: 3 | E51: 2027-02-10 | F51: 30 | G51: 526 | H51: 64443.54715 | I51: 1101.351639 | J51: 754.9508008 | K51: 0 | L51: 0 | M51: 1856.30244 | N51: 63342.19551 | O51: 0.8152929953 | P51: 0.8152929953 | R51: 1856.30244 | S51: 526 | T51: 1.258076206 | U51: 1475.51
B52: 17 | C52: 2027-03-10 | D52: 3 | E52: 2027-03-10 | F52: 28 | G52: 554 | H52: 63342.19551 | I52: 1163.993116 | J52: 692.3093237 | K52: 0 | L52: 0 | M52: 1856.30244 | N52: 62178.20239 | O52: 0.8064784516 | P52: 0.8064784516 | R52: 1856.30244 | S52: 554 | T52: 1.273545727 | U52: 1457.59
B53: 18 | C53: 2027-04-10 | D53: 6 | E53: 2027-04-10 | F53: 31 | G53: 585 | H53: 62178.20239 | I53: 1103.463138 | J53: 752.8393017 | K53: 0 | L53: 0 | M53: 1856.30244 | N53: 61074.73925 | O53: 0.7968306107 | P53: 0.7968306107 | R53: 1856.30244 | S53: 585 | T53: 1.290894671 | U53: 1438
B54: 19 | C54: 2027-05-10 | D54: 1 | E54: 2027-05-10 | F54: 30 | G54: 615 | H54: 61074.73925 | I54: 1140.816944 | J54: 715.4854963 | K54: 0 | L54: 0 | M54: 1856.30244 | N54: 59933.92231 | O54: 0.7876038965 | P54: 0.7876038965 | R54: 1856.30244 | S54: 615 | T54: 1.307908963 | U54: 1419.29
B55: 20 | C55: 2027-06-10 | D55: 4 | E55: 2027-06-10 | F55: 31 | G55: 646 | H55: 59933.92231 | I55: 1130.636363 | J55: 725.6660773 | K55: 0 | L55: 0 | M55: 1856.30244 | N55: 58803.28595 | O55: 0.7781818506 | P55: 0.7781818506 | R55: 1856.30244 | S55: 646 | T55: 1.325726023 | U55: 1400.22
B56: 21 | C56: 2027-07-10 | D56: 6 | E56: 2027-07-10 | F56: 30 | G56: 676 | H56: 58803.28595 | I56: 1167.42683 | J56: 688.8756095 | K56: 0 | L56: 0 | M56: 1856.30244 | N56: 57635.85912 | O56: 0.7691710753 | P56: 0.7691710753 | R56: 1856.30244 | S56: 676 | T56: 1.3431994 | U56: 1382
B57: 22 | C57: 2027-08-10 | D57: 2 | E57: 2027-08-10 | F57: 31 | G57: 707 | H57: 57635.85912 | I57: 1158.460781 | J57: 697.8416594 | K57: 0 | L57: 0 | M57: 1856.30244 | N57: 56477.39834 | O57: 0.7599695398 | P57: 0.7599695398 | R57: 1856.30244 | S57: 707 | T57: 1.361497206 | U57: 1363.43
B58: 23 | C58: 2027-09-10 | D58: 5 | E58: 2027-09-10 | F58: 31 | G58: 738 | H58: 56477.39834 | I58: 1172.487156 | J58: 683.815284 | K58: 0 | L58: 0 | M58: 1856.30244 | N58: 55304.91118 | O58: 0.7508780816 | P58: 0.7508780816 | R58: 1856.30244 | S58: 738 | T58: 1.380044274 | U58: 1345.1
B59: 24 | C59: 2027-10-10 | D59: 7 | E59: 2027-10-11 | F59: 31 | G59: 769 | H59: 55304.91118 | I59: 1186.683359 | J59: 669.6190806 | K59: 0 | L59: 0 | M59: 1856.30244 | N59: 54118.22782 | O59: 0.7418953837 | P59: 0.7418953837 | R59: 1856.30244 | S59: 769 | T59: 1.398844 | U59: 1327.03
B60: 25 | C60: 2027-11-10 | D60: 3 | E60: 2027-11-10 | F60: 30 | G60: 799 | H60: 54118.22782 | I60: 1222.311897 | J60: 633.9905428 | K60: 0 | L60: 0 | M60: 1856.30244 | N60: 52895.91592 | O60: 0.7333047792 | P60: 0.7333047792 | R60: 1856.30244 | S60: 799 | T60: 1.41728109 | U60: 1309.76
B61: 26 | C61: 2027-12-10 | D61: 5 | E61: 2027-12-10 | F61: 30 | G61: 829 | H61: 52895.91592 | I61: 1236.631179 | J61: 619.6712604 | K61: 0 | L61: 0 | M61: 1856.30244 | N61: 51659.28474 | O61: 0.7248136475 | P61: 0.7248136475 | R61: 1856.30244 | S61: 829 | T61: 1.435961184 | U61: 1292.72
B62: 27 | C62: 2028-01-10 | D62: 1 | E62: 2028-01-10 | F62: 31 | G62: 860 | H62: 51659.28474 | I62: 1230.823762 | J62: 625.4786784 | K62: 0 | L62: 0 | M62: 1856.30244 | N62: 50428.46098 | O62: 0.7161427566 | P62: 0.7161427566 | R62: 1856.30244 | S62: 860 | T62: 1.455522642 | U62: 1275.35
B63: 28 | C63: 2028-02-10 | D63: 4 | E63: 2028-02-10 | F63: 31 | G63: 891 | H63: 50428.46098 | I63: 1245.726291 | J63: 610.5761488 | K63: 0 | L63: 0 | M63: 1856.30244 | N63: 49182.73469 | O63: 0.7075755948 | P63: 0.7075755948 | R63: 1856.30244 | S63: 891 | T63: 1.475350576 | U63: 1258.21
B64: 29 | C64: 2028-03-10 | D64: 5 | E64: 2028-03-10 | F64: 29 | G64: 920 | H64: 49182.73469 | I64: 1299.444821 | J64: 556.8576185 | K64: 0 | L64: 0 | M64: 1856.30244 | N64: 47883.28987 | O64: 0.6996539605 | P64: 0.6996539605 | R64: 1856.30244 | S64: 920 | T64: 1.494143748 | U64: 1242.39
B65: 30 | C65: 2028-04-10 | D65: 1 | E65: 2028-04-10 | F65: 31 | G65: 951 | H65: 47883.28987 | I65: 1276.542635 | J65: 579.7598053 | K65: 0 | L65: 0 | M65: 1856.30244 | N65: 46606.74724 | O65: 0.691284053 | P65: 0.691284053 | R65: 1856.30244 | S65: 951 | T65: 1.5144978 | U65: 1225.69
B66: 31 | C66: 2028-05-10 | D66: 3 | E66: 2028-05-10 | F66: 30 | G66: 981 | H66: 46606.74724 | I66: 1310.308268 | J66: 545.9941718 | K66: 0 | L66: 0 | M66: 1856.30244 | N66: 45296.43897 | O66: 0.6832794905 | P66: 0.6832794905 | R66: 1856.30244 | S66: 981 | T66: 1.534459234 | U66: 1209.74
B67: 32 | C67: 2028-06-10 | D67: 6 | E67: 2028-06-10 | F67: 31 | G67: 1012 | H67: 45296.43897 | I67: 1307.863627 | J67: 548.4388125 | K67: 0 | L67: 0 | M67: 1856.30244 | N67: 43988.57534 | O67: 0.6751054696 | P67: 0.6751054696 | R67: 1856.30244 | S67: 1012 | T67: 1.555362486 | U67: 1193.49
B68: 33 | C68: 2028-07-10 | D68: 1 | E68: 2028-07-10 | F68: 30 | G68: 1042 | H68: 43988.57534 | I68: 1340.979934 | J68: 515.3225055 | K68: 0 | L68: 0 | M68: 1856.30244 | N68: 42647.5954 | O68: 0.6672882432 | P68: 0.6672882432 | R68: 1856.30244 | S68: 1042 | T68: 1.575862526 | U68: 1177.96
B69: 34 | C69: 2028-08-10 | D69: 4 | E69: 2028-08-10 | F69: 31 | G69: 1073 | H69: 42647.5954 | I69: 1339.935213 | J69: 516.367227 | K69: 0 | L69: 0 | M69: 1856.30244 | N69: 41307.66019 | O69: 0.6593055243 | P69: 0.6593055243 | R69: 1856.30244 | S69: 1073 | T69: 1.597329797 | U69: 1162.13
B70: 35 | C70: 2028-09-10 | D70: 7 | E70: 2028-09-11 | F70: 32 | G70: 1105 | H70: 41307.66019 | I70: 1339.924744 | J70: 516.3776963 | K70: 0 | L70: 0 | M70: 1856.30244 | N70: 39967.73545 | O70: 0.6511654526 | P70: 0.6511654526 | R70: 1856.30244 | S70: 1105 | T70: 1.619796347 | U70: 1146.01
B71: 36 | C71: 2028-10-10 | D71: 2 | E71: 2028-10-10 | F71: 29 | G71: 1134 | H71: 39967.73545 | I71: 1403.779047 | J71: 452.523393 | K71: 0 | L71: 0 | M71: 1856.30244 | N71: 38563.9564 | O71: 0.6438753558 | P71: 0.6438753558 | R71: 1856.30244 | S71: 1134 | T71: 1.640429484 | U71: 1131.6
B72: 37 | C72: 2028-11-10 | D72: 5 | E72: 2028-11-10 | F72: 31 | G72: 1165 | H72: 38563.9564 | I72: 1389.37897 | J72: 466.9234699 | K72: 0 | L72: 0 | M72: 1856.30244 | N72: 37174.57743 | O72: 0.6361727235 | P72: 0.6361727235 | R72: 1856.30244 | S72: 1165 | T72: 1.662776321 | U72: 1116.39
B73: 38 | C73: 2028-12-10 | D73: 7 | E73: 2028-12-11 | F73: 31 | G73: 1196 | H73: 37174.57743 | I73: 1406.201249 | J73: 450.1011904 | K73: 0 | L73: 0 | M73: 1856.30244 | N73: 35768.37618 | O73: 0.6285622373 | P73: 0.6285622373 | R73: 1856.30244 | S73: 1196 | T73: 1.68542758 | U73: 1101.38
B74: 39 | C74: 2029-01-10 | D74: 3 | E74: 2029-01-10 | F74: 30 | G74: 1226 | H74: 35768.37618 | I74: 1437.278885 | J74: 419.0235553 | K74: 0 | L74: 0 | M74: 1856.30244 | N74: 34331.0973 | O74: 0.6212839474 | P74: 0.6212839474 | R74: 1856.30244 | S74: 1226 | T74: 1.707641908 | U74: 1087.06
B75: 40 | C75: 2029-02-10 | D75: 6 | E75: 2029-02-10 | F75: 31 | G75: 1257 | H75: 34331.0973 | I75: 1440.62945 | J75: 415.6729903 | K75: 0 | L75: 0 | M75: 1856.30244 | N75: 32890.46785 | O75: 0.6138515745 | P75: 0.6138515745 | R75: 1856.30244 | S75: 1257 | T75: 1.730904351 | U75: 1072.45
B76: 41 | C76: 2029-03-10 | D76: 6 | E76: 2029-03-10 | F76: 28 | G76: 1285 | H76: 32890.46785 | I76: 1496.820465 | J76: 359.4819752 | K76: 0 | L76: 0 | M76: 1856.30244 | N76: 31393.64738 | O76: 0.6072149155 | P76: 0.6072149155 | R76: 1856.30244 | S76: 1285 | T76: 1.752187847 | U76: 1059.42
B77: 42 | C77: 2029-04-10 | D77: 2 | E77: 2029-04-10 | F77: 31 | G77: 1316 | H77: 31393.64738 | I77: 1476.195414 | J77: 380.1070257 | K77: 0 | L77: 0 | M77: 1856.30244 | N77: 29917.45197 | O77: 0.5999508493 | P77: 0.5999508493 | R77: 1856.30244 | S77: 1316 | T77: 1.776057119 | U77: 1045.18
B78: 43 | C78: 2029-05-10 | D78: 4 | E78: 2029-05-10 | F78: 30 | G78: 1346 | H78: 29917.45197 | I78: 1505.821976 | J78: 350.4804643 | K78: 0 | L78: 0 | M78: 1856.30244 | N78: 28411.62999 | O78: 0.5930038584 | P78: 0.5930038584 | R78: 1856.30244 | S78: 1346 | T78: 1.799465965 | U78: 1031.59
B79: 44 | C79: 2029-06-10 | D79: 7 | E79: 2029-06-11 | F79: 32 | G79: 1378 | H79: 28411.62999 | I79: 1501.135094 | J79: 355.1673461 | K79: 0 | L79: 0 | M79: 1856.30244 | N79: 26910.4949 | O79: 0.5856823758 | P79: 0.5856823758 | R79: 1856.30244 | S79: 1378 | T79: 1.824775574 | U79: 1017.28
B80: 45 | C80: 2029-07-10 | D80: 2 | E80: 2029-07-10 | F80: 29 | G80: 1407 | H80: 26910.4949 | I80: 1551.615964 | J80: 304.6864758 | K80: 0 | L80: 0 | M80: 1856.30244 | N80: 25358.87893 | O80: 0.5791253921 | P80: 0.5791253921 | R80: 1856.30244 | S80: 1407 | T80: 1.848019757 | U80: 1004.48
B81: 46 | C81: 2029-08-10 | D81: 5 | E81: 2029-08-10 | F81: 31 | G81: 1438 | H81: 25358.87893 | I81: 1549.262996 | J81: 307.0394443 | K81: 0 | L81: 0 | M81: 1856.30244 | N81: 23809.61594 | O81: 0.5721973588 | P81: 0.5721973588 | R81: 1856.30244 | S81: 1438 | T81: 1.873194505 | U81: 990.98
B82: 47 | C82: 2029-09-10 | D82: 1 | E82: 2029-09-10 | F82: 31 | G82: 1469 | H82: 23809.61594 | I82: 1568.021114 | J82: 288.2813261 | K82: 0 | L82: 0 | M82: 1856.30244 | N82: 22241.59483 | O82: 0.565352205 | P82: 0.565352205 | R82: 1856.30244 | S82: 1469 | T82: 1.898712196 | U82: 977.66
B83: 48 | C83: 2029-10-10 | D83: 3 | E83: 2029-10-10 | F83: 30 | G83: 1499 | H83: 22241.59483 | I83: 1595.744004 | J83: 260.5584355 | K83: 0 | L83: 0 | M83: 1856.30244 | N83: 20645.85082 | O83: 0.558805841 | P83: 0.558805841 | R83: 1856.30244 | S83: 1499 | T83: 1.923737665 | U83: 964.95
B84: 49 | C84: 2029-11-10 | D84: 6 | E84: 2029-11-10 | F84: 31 | G84: 1530 | H84: 20645.85082 | I84: 1606.327251 | J84: 249.9751893 | K84: 0 | L84: 0 | M84: 1856.30244 | N84: 19039.52357 | O84: 0.5521208889 | P84: 0.5521208889 | R84: 1856.30244 | S84: 1530 | T84: 1.949943884 | U84: 951.98
B85: 50 | C85: 2029-12-10 | D85: 1 | E85: 2029-12-10 | F85: 30 | G85: 1560 | H85: 19039.52357 | I85: 1633.256003 | J85: 223.0464368 | K85: 0 | L85: 0 | M85: 1856.30244 | N85: 17406.26757 | O85: 0.5457277338 | P85: 0.5457277338 | R85: 1856.30244 | S85: 1560 | T85: 1.975644598 | U85: 939.59
B86: 51 | C86: 2030-01-10 | D86: 4 | E86: 2030-01-10 | F86: 31 | G86: 1591 | H86: 17406.26757 | I86: 1645.551376 | J86: 210.7510642 | K86: 0 | L86: 0 | M86: 1856.30244 | N86: 15760.71619 | O86: 0.5391992341 | P86: 0.5391992341 | R86: 1856.30244 | S86: 1591 | T86: 2.002557922 | U86: 926.97
B87: 52 | C87: 2030-02-10 | D87: 7 | E87: 2030-02-11 | F87: 32 | G87: 1623 | H87: 15760.71619 | I87: 1659.2813 | J87: 197.0211404 | K87: 0 | L87: 0 | M87: 1856.30244 | N87: 14101.43489 | O87: 0.5325420467 | P87: 0.5325420467 | R87: 1856.30244 | S87: 1623 | T87: 2.030724032 | U87: 914.11
B88: 53 | C88: 2030-03-10 | D88: 7 | E88: 2030-03-11 | F88: 28 | G88: 1651 | H88: 14101.43489 | I88: 1702.178403 | J88: 154.1240365 | K88: 0 | L88: 0 | M88: 1856.30244 | N88: 12399.25649 | O88: 0.5267844661 | P88: 0.5267844661 | R88: 1856.30244 | S88: 1651 | T88: 2.055694162 | U88: 903.01
B89: 54 | C89: 2030-04-10 | D89: 3 | E89: 2030-04-10 | F89: 30 | G89: 1681 | H89: 12399.25649 | I89: 1711.04618 | J89: 145.2562596 | K89: 0 | L89: 0 | M89: 1856.30244 | N89: 10688.21031 | O89: 0.5206846882 | P89: 0.5206846882 | R89: 1856.30244 | S89: 1681 | T89: 2.08278869 | U89: 891.26
B90: 55 | C90: 2030-05-10 | D90: 5 | E90: 2030-05-10 | F90: 30 | G90: 1711 | H90: 10688.21031 | I90: 1731.090944 | J90: 125.2114958 | K90: 0 | L90: 0 | M90: 1856.30244 | N90: 8957.119364 | O90: 0.5146555413 | P90: 0.5146555413 | R90: 1856.30244 | S90: 1711 | T90: 2.11024033 | U90: 879.66
B91: 56 | C91: 2030-06-10 | D91: 1 | E91: 2030-06-10 | F91: 31 | G91: 1742 | H91: 8957.119364 | I91: 1747.851709 | J91: 108.4507308 | K91: 0 | L91: 0 | M91: 1856.30244 | N91: 7209.267655 | O91: 0.5084987559 | P91: 0.5084987559 | R91: 1856.30244 | S91: 1742 | T91: 2.138987191 | U91: 867.84
B92: 57 | C92: 2030-07-10 | D92: 3 | E92: 2030-07-10 | F92: 30 | G92: 1772 | H92: 7209.267655 | I92: 1771.846468 | J92: 84.45597163 | K92: 0 | L92: 0 | M92: 1856.30244 | N92: 5437.421186 | O92: 0.5026107132 | P92: 0.5026107132 | R92: 1856.30244 | S92: 1772 | T92: 2.16717954 | U92: 856.55
B93: 58 | C93: 2030-08-10 | D93: 6 | E93: 2030-08-10 | F93: 31 | G93: 1803 | H93: 5437.421186 | I93: 1790.467401 | J93: 65.83503884 | K93: 0 | L93: 0 | M93: 1856.30244 | N93: 3646.953785 | O93: 0.4965980192 | P93: 0.4965980192 | R93: 1856.30244 | S93: 1803 | T93: 2.196702058 | U93: 845.04
B94: 59 | C94: 2030-09-10 | D94: 2 | E94: 2030-09-10 | F94: 31 | G94: 1834 | H94: 3646.953785 | I94: 1812.145967 | J94: 44.15647342 | K94: 0 | L94: 0 | M94: 1856.30244 | N94: 1834.807819 | O94: 0.4906572545 | P94: 0.4906572545 | R94: 1856.30244 | S94: 1834 | T94: 2.226626749 | U94: 833.68
B95: 60 | C95: 2030-10-10 | D95: 4 | E95: 2030-10-10 | F95: 30 | G95: 1864 | H95: 1834.807819 | I95: 1834.807819 | J95: 21.49462116 | K95: 0 | L95: 0 | M95: 1856.30244 | N95: 0 | O95: 0.4849758033 | P95: 0.4849758033 | R95: 1856.30244 | S95: 1864 | T95: 2.255974208 | U95: 822.84
B96: 61
B97: 62
B98: 63
B99: 64
B100: 65 | D100: =IF(B100<=$C$20,WEEKDAY(C100,2),"") ->  | J100: =IF(B100>C$20,"",((1+C$25)^(F100/360)-1)*H100) ->  | K100: =IF(B100>C$20,"",C$27*C$28) ->  | L100: =IF(B100>C$20,"",C$29) ->  | N100: =IF(B100>C$20,"",H100-I100) ->  | P100: =IFERROR(1/(1+C$26)^(G100/360),"") ->  | S100: =G100 ->  | T100: =IFERROR((1+C$32)^(S100/360),"") ->  | U100: =IFERROR(ROUND(R100/T100,2),"") -> 
B101: 66 | C101: =IF(B101>$C$20,"",EDATE(C100,1)) ->  | E101: =IF(D101=7,C101+1,C101) ->  | F101: =IF(B101>C$20,"",E101-E100) ->  | G101: =IFERROR(F101+G100,"") ->  | H101: =IF(B101>C$20,"",N100) ->  | I101: =IF(B101>C$20,"",M101-L101-K101-J101) ->  | M101: =IF(B101>C$20,"",IF(B101=C$20,H101+J101+K101+L101,IF(AND(C$23=2,MONTH(C101)=7),2*C$30,IF(AND(C$24=2,MONTH(C101)=12),2*C$30,C$30)))) ->  | O101: =IFERROR(IF(AND(MONTH(C101)=7,C$23=2),2/(1+C$26)^(G101/360),IF(AND(MONTH(C101)=12,C$24=2),2/(1+C$26)^(G101/360),1/(1+C$26)^(G101/360))),"") ->  | R101: =IFERROR(I101+J101+K101+L101,"") -> 
B102: 67
B103: 68
B104: 69
B105: 70
B106: 71
B107: 72
B108: 73
B109: 74
B110: 75
B111: 76
B112: 77
B113: 78
B114: 79
B115: 80
B116: 81
B117: 82
B118: 83
B119: 84
B120: 85
B121: 86
B122: 87
B123: 88
B124: 89
B125: 90
B126: 91
B127: 92
B128: 93
B129: 94
B130: 95
B131: 96
B132: 97
B133: 98
B134: 99
B135: 100
B136: 101
B137: 102
B138: 103
B139: 104
B140: 105
B141: 106
B142: 107
B143: 108
B144: 109
B145: 110
B146: 111
B147: 112
B148: 113
B149: 114
B150: 115
B151: 116
B152: 117
B153: 118
B154: 119
B155: 120
B156: 121
B157: 122
B158: 123
B159: 124
B160: 125
B161: 126
B162: 127
B163: 128
B164: 129 | D164: =IF(B164<=$C$20,WEEKDAY(C164,2),"") ->  | J164: =IF(B164>C$20,"",((1+C$25)^(F164/360)-1)*H164) ->  | K164: =IF(B164>C$20,"",C$27*C$28) ->  | L164: =IF(B164>C$20,"",C$29) ->  | N164: =IF(B164>C$20,"",H164-I164) ->  | P164: =IFERROR(1/(1+C$26)^(G164/360),"") ->  | S164: =G164 ->  | T164: =IFERROR((1+C$32)^(S164/360),"") ->  | U164: =IFERROR(ROUND(R164/T164,2),"") -> 
B165: 130 | C165: =IF(B165>$C$20,"",EDATE(C164,1)) ->  | E165: =IF(D165=7,C165+1,C165) ->  | F165: =IF(B165>C$20,"",E165-E164) ->  | G165: =IFERROR(F165+G164,"") ->  | H165: =IF(B165>C$20,"",N164) ->  | I165: =IF(B165>C$20,"",M165-L165-K165-J165) ->  | M165: =IF(B165>C$20,"",IF(B165=C$20,H165+J165+K165+L165,IF(AND(C$23=2,MONTH(C165)=7),2*C$30,IF(AND(C$24=2,MONTH(C165)=12),2*C$30,C$30)))) ->  | O165: =IFERROR(IF(AND(MONTH(C165)=7,C$23=2),2/(1+C$26)^(G165/360),IF(AND(MONTH(C165)=12,C$24=2),2/(1+C$26)^(G165/360),1/(1+C$26)^(G165/360))),"") ->  | R165: =IFERROR(I165+J165+K165+L165,"") -> 
B166: 131
B167: 132
B168: 133
B169: 134
B170: 135
B171: 136
B172: 137
B173: 138
B174: 139
B175: 140
B176: 141
B177: 142
B178: 143
B179: 144
B180: 145
B181: 146
B182: 147
B183: 148
B184: 149
B185: 150
B186: 151
B187: 152
B188: 153
B189: 154
B190: 155
B191: 156
B192: 157
B193: 158
B194: 159
B195: 160
B196: 161
B197: 162
B198: 163
B199: 164
B200: 165
B201: 166
B202: 167
B203: 168
B204: 169
B205: 170
B206: 171
... 189 more rows

Sheet Cronograma
B2: Cronograma
B4: Nota: Todo crédito se encuentra sujeto a la evaluación crediticia del Banco, quien determina el monto y plazo a otorgar.
B5: Este documento ha sido emitido en base a la información por el cliente y tiene caracter referencial.
B7: Tasa de Interés Efectiva Anual (en base a 360 días) | G7: =+'Vista Principal'!C25 -> 0.15
B8: Tasa de Costo Efectiva Anual (en base a 360 días) | G8: =+'Vista Principal'!C32 -> 0.1701471986
B11: N° Cuota | C11: Fecha de pago | D11: Saldo Inicial | E11: Amortización | F11: Interés | G11: Envío físico de estado de cuenta | H11: Cuota | I11: Saldo Final
B12: =+'Vista Principal'!B36 -> 1 | C12: =+'Vista Principal'!C36 -> 2025-11-10 | D12: =+'Vista Principal'!H36 -> 78150 | E12: =+'Vista Principal'!I36 -> -265.4482956 | F12: =+'Vista Principal'!J36 -> 2121.750736 | G12: =+'Vista Principal'!L36 -> 0 | H12: =+'Vista Principal'!M36 -> 1856.30244 | I12: =+'Vista Principal'!N36 -> 78415.4483
B13: =+'Vista Principal'!B37 -> 2 | C13: =+'Vista Principal'!C37 -> 2025-12-10 | D13: =+'Vista Principal'!H37 -> 78415.4483 | E13: =+'Vista Principal'!I37 -> 937.6719779 | F13: =+'Vista Principal'!J37 -> 918.630462 | G13: =+'Vista Principal'!L37 -> 0 | H13: =+'Vista Principal'!M37 -> 1856.30244 | I13: =+'Vista Principal'!N37 -> 77477.77632
B14: =+'Vista Principal'!B38 -> 3 | C14: =+'Vista Principal'!C38 -> 2026-01-10 | D14: =+'Vista Principal'!H38 -> 77477.77632 | E14: =+'Vista Principal'!I38 -> 918.2194337 | F14: =+'Vista Principal'!J38 -> 938.0830063 | G14: =+'Vista Principal'!L38 -> 0 | H14: =+'Vista Principal'!M38 -> 1856.30244 | I14: =+'Vista Principal'!N38 -> 76559.55688
B15: =+'Vista Principal'!B39 -> 4 | C15: =+'Vista Principal'!C39 -> 2026-02-10 | D15: =+'Vista Principal'!H39 -> 76559.55688 | E15: =+'Vista Principal'!I39 -> 929.3370223 | F15: =+'Vista Principal'!J39 -> 926.9654176 | G15: =+'Vista Principal'!L39 -> 0 | H15: =+'Vista Principal'!M39 -> 1856.30244 | I15: =+'Vista Principal'!N39 -> 75630.21986
B16: =+'Vista Principal'!B40 -> 5 | C16: =+'Vista Principal'!C40 -> 2026-03-10 | D16: =+'Vista Principal'!H40 -> 75630.21986 | E16: =+'Vista Principal'!I40 -> 1029.689059 | F16: =+'Vista Principal'!J40 -> 826.6133806 | G16: =+'Vista Principal'!L40 -> 0 | H16: =+'Vista Principal'!M40 -> 1856.30244 | I16: =+'Vista Principal'!N40 -> 74600.5308
B17: =+'Vista Principal'!B41 -> 6 | C17: =+'Vista Principal'!C41 -> 2026-04-10 | D17: =+'Vista Principal'!H41 -> 74600.5308 | E17: =+'Vista Principal'!I41 -> 953.0564573 | F17: =+'Vista Principal'!J41 -> 903.2459827 | G17: =+'Vista Principal'!L41 -> 0 | H17: =+'Vista Principal'!M41 -> 1856.30244 | I17: =+'Vista Principal'!N41 -> 73647.47435
B18: =+'Vista Principal'!B42 -> 7 | C18: =+'Vista Principal'!C42 -> 2026-05-10 | D18: =+'Vista Principal'!H42 -> 73647.47435 | E18: =+'Vista Principal'!I42 -> 964.5958446 | F18: =+'Vista Principal'!J42 -> 891.7065954 | G18: =+'Vista Principal'!L42 -> 0 | H18: =+'Vista Principal'!M42 -> 1856.30244 | I18: =+'Vista Principal'!N42 -> 72682.8785
B19: =+'Vista Principal'!B43 -> 8 | C19: =+'Vista Principal'!C43 -> 2026-06-10 | D19: =+'Vista Principal'!H43 -> 72682.8785 | E19: =+'Vista Principal'!I43 -> 1004.828557 | F19: =+'Vista Principal'!J43 -> 851.4738831 | G19: =+'Vista Principal'!L43 -> 0 | H19: =+'Vista Principal'!M43 -> 1856.30244 | I19: =+'Vista Principal'!N43 -> 71678.04994
B20: =+'Vista Principal'!B44 -> 9 | C20: =+'Vista Principal'!C44 -> 2026-07-10 | D20: =+'Vista Principal'!H44 -> 71678.04994 | E20: =+'Vista Principal'!I44 -> 1016.60004 | F20: =+'Vista Principal'!J44 -> 839.7024001 | G20: =+'Vista Principal'!L44 -> 0 | H20: =+'Vista Principal'!M44 -> 1856.30244 | I20: =+'Vista Principal'!N44 -> 70661.4499
B21: =+'Vista Principal'!B45 -> 10 | C21: =+'Vista Principal'!C45 -> 2026-08-10 | D21: =+'Vista Principal'!H45 -> 70661.4499 | E21: =+'Vista Principal'!I45 -> 1000.749938 | F21: =+'Vista Principal'!J45 -> 855.5525017 | G21: =+'Vista Principal'!L45 -> 0 | H21: =+'Vista Principal'!M45 -> 1856.30244 | I21: =+'Vista Principal'!N45 -> 69660.69997
B22: =+'Vista Principal'!B46 -> 11 | C22: =+'Vista Principal'!C46 -> 2026-09-10 | D22: =+'Vista Principal'!H46 -> 69660.69997 | E22: =+'Vista Principal'!I46 -> 1012.866787 | F22: =+'Vista Principal'!J46 -> 843.4356528 | G22: =+'Vista Principal'!L46 -> 0 | H22: =+'Vista Principal'!M46 -> 1856.30244 | I22: =+'Vista Principal'!N46 -> 68647.83318
B23: =+'Vista Principal'!B47 -> 12 | C23: =+'Vista Principal'!C47 -> 2026-10-10 | D23: =+'Vista Principal'!H47 -> 68647.83318 | E23: =+'Vista Principal'!I47 -> 1052.098778 | F23: =+'Vista Principal'!J47 -> 804.2036624 | G23: =+'Vista Principal'!L47 -> 0 | H23: =+'Vista Principal'!M47 -> 1856.30244 | I23: =+'Vista Principal'!N47 -> 67595.7344
B24: =+'Vista Principal'!B48 -> 13 | C24: =+'Vista Principal'!C48 -> 2026-11-10 | D24: =+'Vista Principal'!H48 -> 67595.7344 | E24: =+'Vista Principal'!I48 -> 1037.868913 | F24: =+'Vista Principal'!J48 -> 818.433527 | G24: =+'Vista Principal'!L48 -> 0 | H24: =+'Vista Principal'!M48 -> 1856.30244 | I24: =+'Vista Principal'!N48 -> 66557.86549
B25: =+'Vista Principal'!B49 -> 14 | C25: =+'Vista Principal'!C49 -> 2026-12-10 | D25: =+'Vista Principal'!H49 -> 66557.86549 | E25: =+'Vista Principal'!I49 -> 1076.582575 | F25: =+'Vista Principal'!J49 -> 779.7198646 | G25: =+'Vista Principal'!L49 -> 0 | H25: =+'Vista Principal'!M49 -> 1856.30244 | I25: =+'Vista Principal'!N49 -> 65481.28291
B26: =+'Vista Principal'!B50 -> 15 | C26: =+'Vista Principal'!C50 -> 2027-01-10 | D26: =+'Vista Principal'!H50 -> 65481.28291 | E26: =+'Vista Principal'!I50 -> 1037.735766 | F26: =+'Vista Principal'!J50 -> 818.5666741 | G26: =+'Vista Principal'!L50 -> 0 | H26: =+'Vista Principal'!M50 -> 1856.30244 | I26: =+'Vista Principal'!N50 -> 64443.54715
B27: =+'Vista Principal'!B51 -> 16 | C27: =+'Vista Principal'!C51 -> 2027-02-10 | D27: =+'Vista Principal'!H51 -> 64443.54715 | E27: =+'Vista Principal'!I51 -> 1101.351639 | F27: =+'Vista Principal'!J51 -> 754.9508008 | G27: =+'Vista Principal'!L51 -> 0 | H27: =+'Vista Principal'!M51 -> 1856.30244 | I27: =+'Vista Principal'!N51 -> 63342.19551
B28: =+'Vista Principal'!B52 -> 17 | C28: =+'Vista Principal'!C52 -> 2027-03-10 | D28: =+'Vista Principal'!H52 -> 63342.19551 | E28: =+'Vista Principal'!I52 -> 1163.993116 | F28: =+'Vista Principal'!J52 -> 692.3093237 | G28: =+'Vista Principal'!L52 -> 0 | H28: =+'Vista Principal'!M52 -> 1856.30244 | I28: =+'Vista Principal'!N52 -> 62178.20239
B29: =+'Vista Principal'!B53 -> 18 | C29: =+'Vista Principal'!C53 -> 2027-04-10 | D29: =+'Vista Principal'!H53 -> 62178.20239 | E29: =+'Vista Principal'!I53 -> 1103.463138 | F29: =+'Vista Principal'!J53 -> 752.8393017 | G29: =+'Vista Principal'!L53 -> 0 | H29: =+'Vista Principal'!M53 -> 1856.30244 | I29: =+'Vista Principal'!N53 -> 61074.73925
B30: =+'Vista Principal'!B54 -> 19 | C30: =+'Vista Principal'!C54 -> 2027-05-10 | D30: =+'Vista Principal'!H54 -> 61074.73925 | E30: =+'Vista Principal'!I54 -> 1140.816944 | F30: =+'Vista Principal'!J54 -> 715.4854963 | G30: =+'Vista Principal'!L54 -> 0 | H30: =+'Vista Principal'!M54 -> 1856.30244 | I30: =+'Vista Principal'!N54 -> 59933.92231
B31: =+'Vista Principal'!B55 -> 20 | C31: =+'Vista Principal'!C55 -> 2027-06-10 | D31: =+'Vista Principal'!H55 -> 59933.92231 | E31: =+'Vista Principal'!I55 -> 1130.636363 | F31: =+'Vista Principal'!J55 -> 725.6660773 | G31: =+'Vista Principal'!L55 -> 0 | H31: =+'Vista Principal'!M55 -> 1856.30244 | I31: =+'Vista Principal'!N55 -> 58803.28595
B32: =+'Vista Principal'!B56 -> 21 | C32: =+'Vista Principal'!C56 -> 2027-07-10 | D32: =+'Vista Principal'!H56 -> 58803.28595 | E32: =+'Vista Principal'!I56 -> 1167.42683 | F32: =+'Vista Principal'!J56 -> 688.8756095 | G32: =+'Vista Principal'!L56 -> 0 | H32: =+'Vista Principal'!M56 -> 1856.30244 | I32: =+'Vista Principal'!N56 -> 57635.85912
B33: =+'Vista Principal'!B57 -> 22 | C33: =+'Vista Principal'!C57 -> 2027-08-10 | D33: =+'Vista Principal'!H57 -> 57635.85912 | E33: =+'Vista Principal'!I57 -> 1158.460781 | F33: =+'Vista Principal'!J57 -> 697.8416594 | G33: =+'Vista Principal'!L57 -> 0 | H33: =+'Vista Principal'!M57 -> 1856.30244 | I33: =+'Vista Principal'!N57 -> 56477.39834
B34: =+'Vista Principal'!B58 -> 23 | C34: =+'Vista Principal'!C58 -> 2027-09-10 | D34: =+'Vista Principal'!H58 -> 56477.39834 | E34: =+'Vista Principal'!I58 -> 1172.487156 | F34: =+'Vista Principal'!J58 -> 683.815284 | G34: =+'Vista Principal'!L58 -> 0 | H34: =+'Vista Principal'!M58 -> 1856.30244 | I34: =+'Vista Principal'!N58 -> 55304.91118
B35: =+'Vista Principal'!B59 -> 24 | C35: =+'Vista Principal'!C59 -> 2027-10-10 | D35: =+'Vista Principal'!H59 -> 55304.91118 | E35: =+'Vista Principal'!I59 -> 1186.683359 | F35: =+'Vista Principal'!J59 -> 669.6190806 | G35: =+'Vista Principal'!L59 -> 0 | H35: =+'Vista Principal'!M59 -> 1856.30244 | I35: =+'Vista Principal'!N59 -> 54118.22782
B36: =+'Vista Principal'!B60 -> 25 | C36: =+'Vista Principal'!C60 -> 2027-11-10 | D36: =+'Vista Principal'!H60 -> 54118.22782 | E36: =+'Vista Principal'!I60 -> 1222.311897 | F36: =+'Vista Principal'!J60 -> 633.9905428 | G36: =+'Vista Principal'!L60 -> 0 | H36: =+'Vista Principal'!M60 -> 1856.30244 | I36: =+'Vista Principal'!N60 -> 52895.91592
B37: =+'Vista Principal'!B61 -> 26 | C37: =+'Vista Principal'!C61 -> 2027-12-10 | D37: =+'Vista Principal'!H61 -> 52895.91592 | E37: =+'Vista Principal'!I61 -> 1236.631179 | F37: =+'Vista Principal'!J61 -> 619.6712604 | G37: =+'Vista Principal'!L61 -> 0 | H37: =+'Vista Principal'!M61 -> 1856.30244 | I37: =+'Vista Principal'!N61 -> 51659.28474
B38: =+'Vista Principal'!B62 -> 27 | C38: =+'Vista Principal'!C62 -> 2028-01-10 | D38: =+'Vista Principal'!H62 -> 51659.28474 | E38: =+'Vista Principal'!I62 -> 1230.823762 | F38: =+'Vista Principal'!J62 -> 625.4786784 | G38: =+'Vista Principal'!L62 -> 0 | H38: =+'Vista Principal'!M62 -> 1856.30244 | I38: =+'Vista Principal'!N62 -> 50428.46098
B39: =+'Vista Principal'!B63 -> 28 | C39: =+'Vista Principal'!C63 -> 2028-02-10 | D39: =+'Vista Principal'!H63 -> 50428.46098 | E39: =+'Vista Principal'!I63 -> 1245.726291 | F39: =+'Vista Principal'!J63 -> 610.5761488 | G39: =+'Vista Principal'!L63 -> 0 | H39: =+'Vista Principal'!M63 -> 1856.30244 | I39: =+'Vista Principal'!N63 -> 49182.73469
B40: =+'Vista Principal'!B64 -> 29 | C40: =+'Vista Principal'!C64 -> 2028-03-10 | D40: =+'Vista Principal'!H64 -> 49182.73469 | E40: =+'Vista Principal'!I64 -> 1299.444821 | F40: =+'Vista Principal'!J64 -> 556.8576185 | G40: =+'Vista Principal'!L64 -> 0 | H40: =+'Vista Principal'!M64 -> 1856.30244 | I40: =+'Vista Principal'!N64 -> 47883.28987
B41: =+'Vista Principal'!B65 -> 30 | C41: =+'Vista Principal'!C65 -> 2028-04-10 | D41: =+'Vista Principal'!H65 -> 47883.28987 | E41: =+'Vista Principal'!I65 -> 1276.542635 | F41: =+'Vista Principal'!J65 -> 579.7598053 | G41: =+'Vista Principal'!L65 -> 0 | H41: =+'Vista Principal'!M65 -> 1856.30244 | I41: =+'Vista Principal'!N65 -> 46606.74724
B42: =+'Vista Principal'!B66 -> 31 | C42: =+'Vista Principal'!C66 -> 2028-05-10 | D42: =+'Vista Principal'!H66 -> 46606.74724 | E42: =+'Vista Principal'!I66 -> 1310.308268 | F42: =+'Vista Principal'!J66 -> 545.9941718 | G42: =+'Vista Principal'!L66 -> 0 | H42: =+'Vista Principal'!M66 -> 1856.30244 | I42: =+'Vista Principal'!N66 -> 45296.43897
B43: =+'Vista Principal'!B67 -> 32 | C43: =+'Vista Principal'!C67 -> 2028-06-10 | D43: =+'Vista Principal'!H67 -> 45296.43897 | E43: =+'Vista Principal'!I67 -> 1307.863627 | F43: =+'Vista Principal'!J67 -> 548.4388125 | G43: =+'Vista Principal'!L67 -> 0 | H43: =+'Vista Principal'!M67 -> 1856.30244 | I43: =+'Vista Principal'!N67 -> 43988.57534
B44: =+'Vista Principal'!B68 -> 33 | C44: =+'Vista Principal'!C68 -> 2028-07-10 | D44: =+'Vista Principal'!H68 -> 43988.57534 | E44: =+'Vista Principal'!I68 -> 1340.979934 | F44: =+'Vista Principal'!J68 -> 515.3225055 | G44: =+'Vista Principal'!L68 -> 0 | H44: =+'Vista Principal'!M68 -> 1856.30244 | I44: =+'Vista Principal'!N68 -> 42647.5954
B45: =+'Vista Principal'!B69 -> 34 | C45: =+'Vista Principal'!C69 -> 2028-08-10 | D45: =+'Vista Principal'!H69 -> 42647.5954 | E45: =+'Vista Principal'!I69 -> 1339.935213 | F45: =+'Vista Principal'!J69 -> 516.367227 | G45: =+'Vista Principal'!L69 -> 0 | H45: =+'Vista Principal'!M69 -> 1856.30244 | I45: =+'Vista Principal'!N69 -> 41307.66019
B46: =+'Vista Principal'!B70 -> 35 | C46: =+'Vista Principal'!C70 -> 2028-09-10 | D46: =+'Vista Principal'!H70 -> 41307.66019 | E46: =+'Vista Principal'!I70 -> 1339.924744 | F46: =+'Vista Principal'!J70 -> 516.3776963 | G46: =+'Vista Principal'!L70 -> 0 | H46: =+'Vista Principal'!M70 -> 1856.30244 | I46: =+'Vista Principal'!N70 -> 39967.73545
B47: =+'Vista Principal'!B71 -> 36 | C47: =+'Vista Principal'!C71 -> 2028-10-10 | D47: =+'Vista Principal'!H71 -> 39967.73545 | E47: =+'Vista Principal'!I71 -> 1403.779047 | F47: =+'Vista Principal'!J71 -> 452.523393 | G47: =+'Vista Principal'!L71 -> 0 | H47: =+'Vista Principal'!M71 -> 1856.30244 | I47: =+'Vista Principal'!N71 -> 38563.9564
B48: =+'Vista Principal'!B72 -> 37 | C48: =+'Vista Principal'!C72 -> 2028-11-10 | D48: =+'Vista Principal'!H72 -> 38563.9564 | E48: =+'Vista Principal'!I72 -> 1389.37897 | F48: =+'Vista Principal'!J72 -> 466.9234699 | G48: =+'Vista Principal'!L72 -> 0 | H48: =+'Vista Principal'!M72 -> 1856.30244 | I48: =+'Vista Principal'!N72 -> 37174.57743
B49: =+'Vista Principal'!B73 -> 38 | C49: =+'Vista Principal'!C73 -> 2028-12-10 | D49: =+'Vista Principal'!H73 -> 37174.57743 | E49: =+'Vista Principal'!I73 -> 1406.201249 | F49: =+'Vista Principal'!J73 -> 450.1011904 | G49: =+'Vista Principal'!L73 -> 0 | H49: =+'Vista Principal'!M73 -> 1856.30244 | I49: =+'Vista Principal'!N73 -> 35768.37618
B50: =+'Vista Principal'!B74 -> 39 | C50: =+'Vista Principal'!C74 -> 2029-01-10 | D50: =+'Vista Principal'!H74 -> 35768.37618 | E50: =+'Vista Principal'!I74 -> 1437.278885 | F50: =+'Vista Principal'!J74 -> 419.0235553 | G50: =+'Vista Principal'!L74 -> 0 | H50: =+'Vista Principal'!M74 -> 1856.30244 | I50: =+'Vista Principal'!N74 -> 34331.0973
B51: =+'Vista Principal'!B75 -> 40 | C51: =+'Vista Principal'!C75 -> 2029-02-10 | D51: =+'Vista Principal'!H75 -> 34331.0973 | E51: =+'Vista Principal'!I75 -> 1440.62945 | F51: =+'Vista Principal'!J75 -> 415.6729903 | G51: =+'Vista Principal'!L75 -> 0 | H51: =+'Vista Principal'!M75 -> 1856.30244 | I51: =+'Vista Principal'!N75 -> 32890.46785
B52: =+'Vista Principal'!B76 -> 41 | C52: =+'Vista Principal'!C76 -> 2029-03-10 | D52: =+'Vista Principal'!H76 -> 32890.46785 | E52: =+'Vista Principal'!I76 -> 1496.820465 | F52: =+'Vista Principal'!J76 -> 359.4819752 | G52: =+'Vista Principal'!L76 -> 0 | H52: =+'Vista Principal'!M76 -> 1856.30244 | I52: =+'Vista Principal'!N76 -> 31393.64738
B53: =+'Vista Principal'!B77 -> 42 | C53: =+'Vista Principal'!C77 -> 2029-04-10 | D53: =+'Vista Principal'!H77 -> 31393.64738 | E53: =+'Vista Principal'!I77 -> 1476.195414 | F53: =+'Vista Principal'!J77 -> 380.1070257 | G53: =+'Vista Principal'!L77 -> 0 | H53: =+'Vista Principal'!M77 -> 1856.30244 | I53: =+'Vista Principal'!N77 -> 29917.45197
B54: =+'Vista Principal'!B78 -> 43 | C54: =+'Vista Principal'!C78 -> 2029-05-10 | D54: =+'Vista Principal'!H78 -> 29917.45197 | E54: =+'Vista Principal'!I78 -> 1505.821976 | F54: =+'Vista Principal'!J78 -> 350.4804643 | G54: =+'Vista Principal'!L78 -> 0 | H54: =+'Vista Principal'!M78 -> 1856.30244 | I54: =+'Vista Principal'!N78 -> 28411.62999
B55: =+'Vista Principal'!B79 -> 44 | C55: =+'Vista Principal'!C79 -> 2029-06-10 | D55: =+'Vista Principal'!H79 -> 28411.62999 | E55: =+'Vista Principal'!I79 -> 1501.135094 | F55: =+'Vista Principal'!J79 -> 355.1673461 | G55: =+'Vista Principal'!L79 -> 0 | H55: =+'Vista Principal'!M79 -> 1856.30244 | I55: =+'Vista Principal'!N79 -> 26910.4949
B56: =+'Vista Principal'!B80 -> 45 | C56: =+'Vista Principal'!C80 -> 2029-07-10 | D56: =+'Vista Principal'!H80 -> 26910.4949 | E56: =+'Vista Principal'!I80 -> 1551.615964 | F56: =+'Vista Principal'!J80 -> 304.6864758 | G56: =+'Vista Principal'!L80 -> 0 | H56: =+'Vista Principal'!M80 -> 1856.30244 | I56: =+'Vista Principal'!N80 -> 25358.87893
B57: =+'Vista Principal'!B81 -> 46 | C57: =+'Vista Principal'!C81 -> 2029-08-10 | D57: =+'Vista Principal'!H81 -> 25358.87893 | E57: =+'Vista Principal'!I81 -> 1549.262996 | F57: =+'Vista Principal'!J81 -> 307.0394443 | G57: =+'Vista Principal'!L81 -> 0 | H57: =+'Vista Principal'!M81 -> 1856.30244 | I57: =+'Vista Principal'!N81 -> 23809.61594
B58: =+'Vista Principal'!B82 -> 47 | C58: =+'Vista Principal'!C82 -> 2029-09-10 | D58: =+'Vista Principal'!H82 -> 23809.61594 | E58: =+'Vista Principal'!I82 -> 1568.021114 | F58: =+'Vista Principal'!J82 -> 288.2813261 | G58: =+'Vista Principal'!L82 -> 0 | H58: =+'Vista Principal'!M82 -> 1856.30244 | I58: =+'Vista Principal'!N82 -> 22241.59483
B59: =+'Vista Principal'!B83 -> 48 | C59: =+'Vista Principal'!C83 -> 2029-10-10 | D59: =+'Vista Principal'!H83 -> 22241.59483 | E59: =+'Vista Principal'!I83 -> 1595.744004 | F59: =+'Vista Principal'!J83 -> 260.5584355 | G59: =+'Vista Principal'!L83 -> 0 | H59: =+'Vista Principal'!M83 -> 1856.30244 | I59: =+'Vista Principal'!N83 -> 20645.85082
B60: =+'Vista Principal'!B84 -> 49 | C60: =+'Vista Principal'!C84 -> 2029-11-10 | D60: =+'Vista Principal'!H84 -> 20645.85082 | E60: =+'Vista Principal'!I84 -> 1606.327251 | F60: =+'Vista Principal'!J84 -> 249.9751893 | G60: =+'Vista Principal'!L84 -> 0 | H60: =+'Vista Principal'!M84 -> 1856.30244 | I60: =+'Vista Principal'!N84 -> 19039.52357
B61: =+'Vista Principal'!B85 -> 50 | C61: =+'Vista Principal'!C85 -> 2029-12-10 | D61: =+'Vista Principal'!H85 -> 19039.52357 | E61: =+'Vista Principal'!I85 -> 1633.256003 | F61: =+'Vista Principal'!J85 -> 223.0464368 | G61: =+'Vista Principal'!L85 -> 0 | H61: =+'Vista Principal'!M85 -> 1856.30244 | I61: =+'Vista Principal'!N85 -> 17406.26757
B62: =+'Vista Principal'!B86 -> 51 | C62: =+'Vista Principal'!C86 -> 2030-01-10 | D62: =+'Vista Principal'!H86 -> 17406.26757 | E62: =+'Vista Principal'!I86 -> 1645.551376 | F62: =+'Vista Principal'!J86 -> 210.7510642 | G62: =+'Vista Principal'!L86 -> 0 | H62: =+'Vista Principal'!M86 -> 1856.30244 | I62: =+'Vista Principal'!N86 -> 15760.71619
B63: =+'Vista Principal'!B87 -> 52 | C63: =+'Vista Principal'!C87 -> 2030-02-10 | D63: =+'Vista Principal'!H87 -> 15760.71619 | E63: =+'Vista Principal'!I87 -> 1659.2813 | F63: =+'Vista Principal'!J87 -> 197.0211404 | G63: =+'Vista Principal'!L87 -> 0 | H63: =+'Vista Principal'!M87 -> 1856.30244 | I63: =+'Vista Principal'!N87 -> 14101.43489
B64: =+'Vista Principal'!B88 -> 53 | C64: =+'Vista Principal'!C88 -> 2030-03-10 | D64: =+'Vista Principal'!H88 -> 14101.43489 | E64: =+'Vista Principal'!I88 -> 1702.178403 | F64: =+'Vista Principal'!J88 -> 154.1240365 | G64: =+'Vista Principal'!L88 -> 0 | H64: =+'Vista Principal'!M88 -> 1856.30244 | I64: =+'Vista Principal'!N88 -> 12399.25649
B65: =+'Vista Principal'!B89 -> 54 | C65: =+'Vista Principal'!C89 -> 2030-04-10 | D65: =+'Vista Principal'!H89 -> 12399.25649 | E65: =+'Vista Principal'!I89 -> 1711.04618 | F65: =+'Vista Principal'!J89 -> 145.2562596 | G65: =+'Vista Principal'!L89 -> 0 | H65: =+'Vista Principal'!M89 -> 1856.30244 | I65: =+'Vista Principal'!N89 -> 10688.21031
B66: =+'Vista Principal'!B90 -> 55 | C66: =+'Vista Principal'!C90 -> 2030-05-10 | D66: =+'Vista Principal'!H90 -> 10688.21031 | E66: =+'Vista Principal'!I90 -> 1731.090944 | F66: =+'Vista Principal'!J90 -> 125.2114958 | G66: =+'Vista Principal'!L90 -> 0 | H66: =+'Vista Principal'!M90 -> 1856.30244 | I66: =+'Vista Principal'!N90 -> 8957.119364
B67: =+'Vista Principal'!B91 -> 56 | C67: =+'Vista Principal'!C91 -> 2030-06-10 | D67: =+'Vista Principal'!H91 -> 8957.119364 | E67: =+'Vista Principal'!I91 -> 1747.851709 | F67: =+'Vista Principal'!J91 -> 108.4507308 | G67: =+'Vista Principal'!L91 -> 0 | H67: =+'Vista Principal'!M91 -> 1856.30244 | I67: =+'Vista Principal'!N91 -> 7209.267655
B68: =+'Vista Principal'!B92 -> 57 | C68: =+'Vista Principal'!C92 -> 2030-07-10 | D68: =+'Vista Principal'!H92 -> 7209.267655 | E68: =+'Vista Principal'!I92 -> 1771.846468 | F68: =+'Vista Principal'!J92 -> 84.45597163 | G68: =+'Vista Principal'!L92 -> 0 | H68: =+'Vista Principal'!M92 -> 1856.30244 | I68: =+'Vista Principal'!N92 -> 5437.421186
B69: =+'Vista Principal'!B93 -> 58 | C69: =+'Vista Principal'!C93 -> 2030-08-10 | D69: =+'Vista Principal'!H93 -> 5437.421186 | E69: =+'Vista Principal'!I93 -> 1790.467401 | F69: =+'Vista Principal'!J93 -> 65.83503884 | G69: =+'Vista Principal'!L93 -> 0 | H69: =+'Vista Principal'!M93 -> 1856.30244 | I69: =+'Vista Principal'!N93 -> 3646.953785
B70: =+'Vista Principal'!B94 -> 59 | C70: =+'Vista Principal'!C94 -> 2030-09-10 | D70: =+'Vista Principal'!H94 -> 3646.953785 | E70: =+'Vista Principal'!I94 -> 1812.145967 | F70: =+'Vista Principal'!J94 -> 44.15647342 | G70: =+'Vista Principal'!L94 -> 0 | H70: =+'Vista Principal'!M94 -> 1856.30244 | I70: =+'Vista Principal'!N94 -> 1834.807819
B71: =+'Vista Principal'!B95 -> 60 | C71: =+'Vista Principal'!C95 -> 2030-10-10 | D71: =+'Vista Principal'!H95 -> 1834.807819 | E71: =+'Vista Principal'!I95 -> 1834.807819 | F71: =+'Vista Principal'!J95 -> 21.49462116 | G71: =+'Vista Principal'!L95 -> 0 | H71: =+'Vista Principal'!M95 -> 1856.30244 | I71: =+'Vista Principal'!N95 -> 0
B72: =+'Vista Principal'!B96 -> 61 | C72: =+'Vista Principal'!C96 ->  | D72: =+'Vista Principal'!H96 ->  | E72: =+'Vista Principal'!I96 ->  | F72: =+'Vista Principal'!J96 ->  | G72: =+'Vista Principal'!L96 ->  | H72: =+'Vista Principal'!M96 ->  | I72: =+'Vista Principal'!N96 -> 
B73: =+'Vista Principal'!B97 -> 62 | C73: =+'Vista Principal'!C97 ->  | D73: =+'Vista Principal'!H97 ->  | E73: =+'Vista Principal'!I97 ->  | F73: =+'Vista Principal'!J97 ->  | G73: =+'Vista Principal'!L97 ->  | H73: =+'Vista Principal'!M97 ->  | I73: =+'Vista Principal'!N97 -> 
B74: =+'Vista Principal'!B98 -> 63 | C74: =+'Vista Principal'!C98 ->  | D74: =+'Vista Principal'!H98 ->  | E74: =+'Vista Principal'!I98 ->  | F74: =+'Vista Principal'!J98 ->  | G74: =+'Vista Principal'!L98 ->  | H74: =+'Vista Principal'!M98 ->  | I74: =+'Vista Principal'!N98 -> 
B75: =+'Vista Principal'!B99 -> 64 | C75: =+'Vista Principal'!C99 ->  | D75: =+'Vista Principal'!H99 ->  | E75: =+'Vista Principal'!I99 ->  | F75: =+'Vista Principal'!J99 ->  | G75: =+'Vista Principal'!L99 ->  | H75: =+'Vista Principal'!M99 ->  | I75: =+'Vista Principal'!N99 -> 
B76: =+'Vista Principal'!B100 -> 65 | C76: =+'Vista Principal'!C100 ->  | D76: =+'Vista Principal'!H100 ->  | E76: =+'Vista Principal'!I100 ->  | F76: =+'Vista Principal'!J100 ->  | G76: =+'Vista Principal'!L100 ->  | H76: =+'Vista Principal'!M100 ->  | I76: =+'Vista Principal'!N100 -> 
B77: =+'Vista Principal'!B101 -> 66 | C77: =+'Vista Principal'!C101 ->  | D77: =+'Vista Principal'!H101 ->  | E77: =+'Vista Principal'!I101 ->  | F77: =+'Vista Principal'!J101 ->  | G77: =+'Vista Principal'!L101 ->  | H77: =+'Vista Principal'!M101 ->  | I77: =+'Vista Principal'!N101 -> 
B78: =+'Vista Principal'!B102 -> 67 | C78: =+'Vista Principal'!C102 ->  | D78: =+'Vista Principal'!H102 ->  | E78: =+'Vista Principal'!I102 ->  | F78: =+'Vista Principal'!J102 ->  | G78: =+'Vista Principal'!L102 ->  | H78: =+'Vista Principal'!M102 ->  | I78: =+'Vista Principal'!N102 -> 
B79: =+'Vista Principal'!B103 -> 68 | C79: =+'Vista Principal'!C103 ->  | D79: =+'Vista Principal'!H103 ->  | E79: =+'Vista Principal'!I103 ->  | F79: =+'Vista Principal'!J103 ->  | G79: =+'Vista Principal'!L103 ->  | H79: =+'Vista Principal'!M103 ->  | I79: =+'Vista Principal'!N103 -> 
B80: =+'Vista Principal'!B104 -> 69 | C80: =+'Vista Principal'!C104 ->  | D80: =+'Vista Principal'!H104 ->  | E80: =+'Vista Principal'!I104 ->  | F80: =+'Vista Principal'!J104 ->  | G80: =+'Vista Principal'!L104 ->  | H80: =+'Vista Principal'!M104 ->  | I80: =+'Vista Principal'!N104 -> 
B81: =+'Vista Principal'!B105 -> 70 | C81: =+'Vista Principal'!C105 ->  | D81: =+'Vista Principal'!H105 ->  | E81: =+'Vista Principal'!I105 ->  | F81: =+'Vista Principal'!J105 ->  | G81: =+'Vista Principal'!L105 ->  | H81: =+'Vista Principal'!M105 ->  | I81: =+'Vista Principal'!N105 -> 
B82: =+'Vista Principal'!B106 -> 71 | C82: =+'Vista Principal'!C106 ->  | D82: =+'Vista Principal'!H106 ->  | E82: =+'Vista Principal'!I106 ->  | F82: =+'Vista Principal'!J106 ->  | G82: =+'Vista Principal'!L106 ->  | H82: =+'Vista Principal'!M106 ->  | I82: =+'Vista Principal'!N106 -> 
B83: =+'Vista Principal'!B107 -> 72 | C83: =+'Vista Principal'!C107 ->  | D83: =+'Vista Principal'!H107 ->  | E83: =+'Vista Principal'!I107 ->  | F83: =+'Vista Principal'!J107 ->  | G83: =+'Vista Principal'!L107 ->  | H83: =+'Vista Principal'!M107 ->  | I83: =+'Vista Principal'!N107 -> 
B84: Total | E84: =SUM(E12:E83) -> 78150 | F84: 33228.1464 | G84: 0 | H84: 111378.1464

Sheet Proceso Prima de Seguro (hidden)
D2: Proceso de Cálculo de la Prima de Seguros
B7: 1) Datos esenciales del préstamo | G7: 3) Calculo del valor presente del Seguro
B9: Producto | D9: =+'Vista Principal'!C9 -> Préstamos Personales (DXP) | G9: Suma de Prima Mensual | H9: =SUM(L36:L395) -> 153055.0078
B10: Tipo de Seguro | D10: ='Vista Principal'!C10 -> Seguro de Vida | G10: VPN - Valor Presente | H10: =NPV(D16,L36:L395) -> 143047.9427
B11: Tarifa | D11: ='Vista Principal'!C11 -> TARIFA TITULAR
B12: Monto inicial | D12: ='Vista Principal'!C12 -> 75000 | G12: 4) Calculo del Monto Adicional del Seguro y MAF
B13: =D10 -> Seguro de Vida | C13: =+CONCATENATE(D9,D10,D11) -> Préstamos Personales (DXP)Seguro de VidaTARIFA TITULAR | D13: =VLOOKUP(C13,CAPUCCI,2,0) -> 0.042
B14: Monto adicional Seguro de Desgravamen/ Vida | G14: Monto inicial | H14: =D12 -> 75000
B15: MAF Inicial | D15: =D12+D14 -> 75000 | G15: Monto adicional de Desgravamen / Vida | H15: =H10 -> 143047.9427
B16: Costo Capital | D16: =INDEX(_xlfn._xlws.FILTER(Tabla2[],Tabla2[TARIFA]=D11),0,2) -> 0.002871 | G16: Prima de Seguro de Desgravamen / Vida | H16: =H15/H14 -> 1.907305903
B17: Moneda | D17: ='Vista Principal'!C19 -> Soles | G17: MAF Inicial | H17: =H14+H15 -> 218047.9427
B18: Plazo Remanente Meses | D18: ='Vista Principal'!C20 -> 60
B19: Fecha de Desembolso | D19: ='Vista Principal'!C21 -> 2025-09-02
B20: Fecha de 1er Pago | D20: ='Vista Principal'!C22 -> 2025-11-10
B21: Cuota Julio | D21: ='Vista Principal'!C23 -> 1
B22: Cuota Diciembre | D22: ='Vista Principal'!C24 -> 1
B23: TEA | D23: ='Vista Principal'!C25 -> 0.15
B24: TEA TOTAL | D24: =(1+(((1+D23)^(30/360)-1)+D13))^12-1 -> 0.8736028495
B25: Monto del Bien | D25: 0
B26: Seguro del Bien | D26: 0
B27: Portes | D27: 0
B28: Cuota | D28: =(D15+(D26*D25+D27)*R34)/Q34 -> 4557.355802
B30: TCEA | D30: 0.2373067527
W31: =D15-W34-D14 -> -86099.07
B33: 2) Creación de Cronograma de prima mensual
Q34: =SUM(Q36:Q395) -> 16.45691126 | R34: =SUM(R36:R395) -> 16.45691126 | W34: =SUM(W36:W395) -> 161099.07
B35: N° Cuota | D35: Fecha de pago | E35: Día | F35: Fecha de pago | G35: Días | H35: Dias Acumulados | I35: Saldo Inicial | J35: Amortización | K35: Interés | L35: Seguro Desgravamen | M35: Seguro del Bien | N35: Portes | O35: Cuota Constante | P35: Saldo Final | Q35: Factor Cronograma | R35: Factor Cronograma 2 | T35: Vector i,1 Cuota | U35: Vector i,2 Días Acum | V35: Vector i,3 Factor | W35: Vector i,4 Calculo VA | X35: VPN - Valor Presente | Y35: VPN - Valor Presente
B36: 1 | D36: =D20 -> 2025-11-10 | E36: =IF(B36<=$D$18,WEEKDAY(D36,2),"") -> 1 | F36: =IF(E36=7,D36+1,D36) -> 2025-11-10 | G36: =F36-D19 -> 69 | H36: =G36 -> 69 | I36: =D15 -> 75000 | J36: =IF(B36>D$18,"",O36-N36-M36-L36-K36) -> -4922.486502 | K36: =IF(B36>D$18,"",((1+D$23)^(G36/360)-1)*I36) -> 2036.229113 | L36: =IF(B36>D$18,"",((1+D$13)^(G36/30)-1)*I36) -> 7443.613192 | M36: =IF(B36>D$18,"",D$25*D$26) -> 0 | N36: =IF(B36>D$18,"",D$27) -> 0 | O36: =IF(B36>D$18,"",IF(B36=D$18,I36+K36+L36+M36+N36,IF(AND(D$21=2,MONTH(F36)=7),2*D$28,IF(AND(D$22=2,MONTH(F36)=12),2*D$28,D$28)))) -> 4557.355802 | P36: =IF(B36>D$18,"",I36-J36) -> 79922.4865 | Q36: =IFERROR(IF(AND(MONTH(F36)=7,D$21=2),2/(1+D$24)^(H36/360),IF(AND(MONTH(F36)=12,D$22=2),2/(1+D$24)^(H36/360),1/(1+D$24)^(H36/360))),"") -> 0.8866185331 | R36: =IFERROR(1/(1+D$24)^(H36/360),"") -> 0.8866185331 | T36: =IFERROR(J36+K36+L36+M36+N36,"") -> 4557.355802 | U36: =H36 -> 69 | V36: =IFERROR((1+D$30)^(U36/360),"") -> 1.041657228 | W36: =IFERROR(ROUND(T36/V36,2),"") -> 4375.1 | X36: =L36/(1+$I$9) -> 7443.613192 | Y36: =L36/(1+$Q$28) -> 7443.613192
B37: 2 | D37: =IF(B37>$D$18,"",EDATE(D36,1)) -> 2025-12-10 | E37: 3 | F37: =IF(E37=7,D37+1,D37) -> 2025-12-10 | G37: =IF(B37>D$18,"",F37-F36) -> 30 | H37: =IFERROR(G37+H36,"") -> 99 | I37: =IF(B37>D$18,"",P36) -> 79922.4865 | J37: 264.3260799 | K37: 936.2852894 | L37: =IF(B37>D$18,"",((1+D$13)^(G37/30)-1)*I37) -> 3356.744433 | M37: 0 | N37: 0 | O37: 4557.355802 | P37: 79658.16042 | Q37: 0.8414216396 | R37: 0.8414216396 | T37: 4557.355802 | U37: 99 | V37: 1.06030615 | W37: 4298.15 | X37: =IF(O37="",0,L37/((1+$I$9)^B37)) -> 3356.744433 | Y37: =IF(O37="",0,L37/((1+$Q$28)^B37)) -> 3356.744433
B38: 3 | D38: 2026-01-10 | E38: 6 | F38: 2026-01-10 | G38: 31 | H38: 130 | I38: 79658.16042 | J38: 133.3211231 | K38: 964.482593 | L38: 3459.552086 | M38: 0 | N38: 0 | O38: 4557.355802 | P38: 79524.8393 | Q38: 0.7971372631 | R38: 0.7971372631 | T38: 4557.355802 | U38: 130 | V38: 1.079927525 | W38: 4220.06 | X38: 3459.552086 | Y38: 3459.552086
B39: 4 | D39: 2026-02-10 | E39: 2 | F39: 2026-02-10 | G39: 31 | H39: 161 | I39: 79524.8393 | J39: 140.7254778 | K39: 962.8683717 | L39: 3453.761953 | M39: 0 | N39: 0 | O39: 4557.355802 | P39: 79384.11382 | Q39: 0.755183592 | R39: 0.755183592 | T39: 4557.355802 | U39: 161 | V39: 1.099912001 | W39: 4143.38 | X39: 3453.761953 | Y39: 3453.761953
B40: 5 | D40: 2026-03-10 | E40: 2 | F40: 2026-03-10 | G40: 28 | H40: 189 | I40: 79384.11382 | J40: 582.149254 | K40: 867.6422046 | L40: 3107.564344 | M40: 0 | N40: 0 | O40: 4557.355802 | P40: 78801.96457 | Q40: 0.7191910802 | R40: 0.7191910802 | T40: 4557.355802 | U40: 189 | V40: 1.118280176 | W40: 4075.33 | X40: 3107.564344 | Y40: 3107.564344
B41: 6 | D41: 2026-04-10 | E41: 5 | F41: 2026-04-10 | G41: 31 | H41: 220 | I41: 78801.96457 | J41: 180.872311 | K41: 954.1159715 | L41: 3422.36752 | M41: 0 | N41: 0 | O41: 4557.355802 | P41: 78621.09226 | Q41: 0.6813397497 | R41: 0.6813397497 | T41: 4557.355802 | U41: 220 | V41: 1.138974383 | W41: 4001.28 | X41: 3422.36752 | Y41: 3422.36752
B42: 7 | D42: 2026-05-10 | E42: 7 | F42: 2026-05-11 | G42: 31 | H42: 251 | I42: 78621.09226 | J42: 190.9175515 | K42: 951.9260114 | L42: 3414.51224 | M42: 0 | N42: 0 | O42: 4557.355802 | P42: 78430.1747 | Q42: 0.6454805507 | R42: 0.6454805507 | T42: 4557.355802 | U42: 251 | V42: 1.160051544 | W42: 3928.58 | X42: 3414.51224 | Y42: 3414.51224
B43: 8 | D43: 2026-06-10 | E43: 3 | F43: 2026-06-10 | G43: 30 | H43: 281 | I43: 78430.1747 | J43: 344.4854841 | K43: 918.8029807 | L43: 3294.067338 | M43: 0 | N43: 0 | O43: 4557.355802 | P43: 78085.68922 | Q43: 0.6125760776 | R43: 0.6125760776 | T43: 4557.355802 | U43: 281 | V43: 1.180820095 | W43: 3859.48 | X43: 3294.067338 | Y43: 3294.067338
B44: 9 | D44: 2026-07-10 | E44: 5 | F44: 2026-07-10 | G44: 30 | H44: 311 | I44: 78085.68922 | J44: 362.9894932 | K44: 914.7673619 | L44: 3279.598947 | M44: 0 | N44: 0 | O44: 4557.355802 | P44: 77722.69973 | Q44: 0.5813489662 | R44: 0.5813489662 | T44: 4557.355802 | U44: 311 | V44: 1.201960467 | W44: 3791.6 | X44: 3279.598947 | Y44: 3279.598947
B45: 10 | D45: 2026-08-10 | E45: 1 | F45: 2026-08-10 | G45: 31 | H45: 342 | I45: 77722.69973 | J45: 240.8122475 | K45: 941.0484823 | L45: 3375.495073 | M45: 0 | N45: 0 | O45: 4557.355802 | P45: 77481.88748 | Q45: 0.5507523243 | R45: 0.5507523243 | T45: 4557.355802 | U45: 342 | V45: 1.22420321 | W45: 3722.71 | X45: 3375.495073 | Y45: 3375.495073
B46: 11 | D46: 2026-09-10 | E46: 4 | F46: 2026-09-10 | G46: 31 | H46: 373 | I46: 77481.88748 | J46: 254.186417 | K46: 938.1327833 | L46: 3365.036602 | M46: 0 | N46: 0 | O46: 4557.355802 | P46: 77227.70106 | Q46: 0.5217659967 | R46: 0.5217659967 | T46: 4557.355802 | U46: 373 | V46: 1.246857564 | W46: 3655.07 | X46: 3365.036602 | Y46: 3365.036602
B47: 12 | D47: 2026-10-10 | E47: 6 | F47: 2026-10-10 | G47: 30 | H47: 403 | I47: 77227.70106 | J47: 409.0762559 | K47: 904.7161019 | L47: 3243.563445 | M47: 0 | N47: 0 | O47: 4557.355802 | P47: 76818.62481 | Q47: 0.4951680842 | R47: 0.4951680842 | T47: 4557.355802 | U47: 403 | V47: 1.269180213 | W47: 3590.79 | X47: 3243.563445 | Y47: 3243.563445
B48: 13 | D48: 2026-11-10 | E48: 2 | F48: 2026-11-10 | G48: 31 | H48: 434 | I48: =IF(B48>D$18,"",P47) -> 76818.62481 | J48: =IF(B48>D$18,"",O48-N48-M48-L48-K48) -> 291.0225308 | K48: =IF(B48>D$18,"",((1+D$23)^(G48/360)-1)*I48) -> 930.1021521 | L48: 3336.231119 | M48: 0 | N48: 0 | O48: 4557.355802 | P48: =IF(B48>D$18,"",I48-J48) -> 76527.60228 | Q48: 0.4691071786 | R48: 0.4691071786 | T48: =IFERROR(J48+K48+L48+M48+N48,"") -> 4557.355802 | U48: 434 | V48: 1.292666884 | W48: 3525.55 | X48: 3336.231119 | Y48: =IF(O48="",0,L48/((1+$Q$28)^B48)) -> 3336.231119
B49: 14 | D49: 2026-12-10 | E49: 4 | F49: 2026-12-10 | G49: 30 | H49: 464 | I49: 76527.60228 | J49: 446.682004 | K49: 896.5145027 | L49: 3214.159296 | M49: 0 | N49: 0 | O49: 4557.355802 | P49: 76080.92027 | Q49: 0.4451936393 | R49: 0.4451936393 | T49: 4557.355802 | U49: 464 | V49: 1.315809663 | W49: 3463.54 | X49: 3214.159296 | Y49: 3214.159296
B50: 15 | D50: 2027-01-10 | E50: 7 | F50: 2027-01-11 | G50: 32 | H50: 496 | I50: 76080.92027 | J50: 193.149557 | K50: 951.070338 | L50: 3413.135907 | M50: 0 | N50: 0 | O50: 4557.355802 | P50: 75887.77072 | Q50: 0.4210279692 | R50: 0.4210279692 | T50: 4557.355802 | U50: 496 | V50: 1.340952158 | W50: 3398.6 | X50: 3413.135907 | Y50: 3413.135907
B51: 16 | D51: 2027-02-10 | E51: 3 | F51: 2027-02-10 | G51: 30 | H51: 526 | I51: 75887.77072 | J51: 481.0505032 | K51: 889.0189292 | L51: 3187.28637 | M51: 0 | N51: 0 | O51: 4557.355802 | P51: 75406.72021 | Q51: 0.3995653497 | R51: 0.3995653497 | T51: 4557.355802 | U51: 526 | V51: 1.364959395 | W51: 3338.82 | X51: 3187.28637 | Y51: 3187.28637
B52: 17 | D52: 2027-03-10 | E52: 3 | F52: 2027-03-10 | G52: 28 | H52: 554 | I52: 75406.72021 | J52: 781.3195963 | K52: 824.1706031 | L52: 2951.865603 | M52: 0 | N52: 0 | O52: 4557.355802 | P52: 74625.40062 | Q52: 0.3805218208 | R52: 0.3805218208 | T52: 4557.355802 | U52: 554 | V52: 1.387753775 | W52: 3283.98 | X52: 2951.865603 | Y52: 2951.865603
B53: 18 | D53: 2027-04-10 | E53: 6 | F53: 2027-04-10 | G53: 31 | H53: 585 | I53: 74625.40062 | J53: 412.8292588 | K53: 903.5471006 | L53: 3240.979443 | M53: 0 | N53: 0 | O53: 4557.355802 | P53: 74212.57136 | Q53: 0.3604947965 | R53: 0.3604947965 | T53: 4557.355802 | U53: 585 | V53: 1.413434695 | W53: 3224.31 | X53: 3240.979443 | Y53: 3240.979443
B54: 19 | D54: 2027-05-10 | E54: 1 | F54: 2027-05-10 | G54: 30 | H54: 615 | I54: 74212.57136 | J54: 571.0336975 | K54: 869.3941079 | L54: 3116.927997 | M54: 0 | N54: 0 | O54: 4557.355802 | P54: 73641.53766 | Q54: 0.3421179588 | R54: 0.3421179588 | T54: 4557.355802 | U54: 615 | V54: 1.438739596 | W54: 3167.6 | X54: 3116.927997 | Y54: 3116.927997
B55: 20 | D55: 2027-06-10 | E55: 4 | F55: 2027-06-10 | G55: 31 | H55: 646 | I55: 73641.53766 | J55: 467.4707898 | K55: 891.6347154 | L55: 3198.250297 | M55: 0 | N55: 0 | O55: 4557.355802 | P55: 73174.06687 | Q55: 0.324112146 | R55: 0.324112146 | T55: 4557.355802 | U55: 646 | V55: 1.465364029 | W55: 3110.05 | X55: 3198.250297 | Y55: 3198.250297
B56: 21 | D56: 2027-07-10 | E56: 6 | F56: 2027-07-10 | G56: 30 | H56: 676 | I56: 73174.06687 | J56: 626.8168798 | K56: 857.2281141 | L56: 3073.310809 | M56: 0 | N56: 0 | O56: 4557.355802 | P56: 72547.24999 | Q56: 0.307589976 | R56: 0.307589976 | T56: 4557.355802 | U56: 676 | V56: 1.491598627 | W56: 3055.35 | X56: 3073.310809 | Y56: 3073.310809
B57: 22 | D57: 2027-08-10 | E57: 2 | F57: 2027-08-10 | G57: 31 | H57: 707 | I57: 72547.24999 | J57: 528.2450604 | K57: 878.3853332 | L57: 3150.725409 | M57: 0 | N57: 0 | O57: 4557.355802 | P57: 72019.00493 | Q57: 0.2914013855 | R57: 0.2914013855 | T57: 4557.355802 | U57: 707 | V57: 1.519201236 | W57: 2999.84 | X57: 3150.725409 | Y57: 3150.725409
B58: 23 | D58: 2027-09-10 | E58: 5 | F58: 2027-09-10 | G58: 31 | H58: 738 | I58: 72019.00493 | J58: 557.5826004 | K58: 871.9894641 | L58: 3127.783738 | M58: 0 | N58: 0 | O58: 4557.355802 | P58: 71461.42233 | Q58: 0.2760648075 | R58: 0.2760648075 | T58: 4557.355802 | U58: 738 | V58: 1.547314643 | W58: 2945.33 | X58: 3127.783738 | Y58: 3127.783738
B59: 24 | D59: 2027-10-10 | E59: 7 | F59: 2027-10-11 | G59: 31 | H59: 769 | I59: 71461.42233 | J59: 588.5494812 | K59: 865.2383829 | L59: 3103.567938 | M59: 0 | N59: 0 | O59: 4557.355802 | P59: 70872.87285 | Q59: 0.2615354 | R59: 0.2615354 | T59: 4557.355802 | U59: 769 | V59: 1.575948298 | W59: 2891.82 | X59: 3103.567938 | Y59: 3103.567938
B60: 25 | D60: 2027-11-10 | E60: 3 | F60: 2027-11-10 | G60: 30 | H60: 799 | I60: 70872.87285 | J60: 750.4253255 | K60: 830.2698173 | L60: 2976.66066 | M60: 0 | N60: 0 | O60: 4557.355802 | P60: 70122.44752 | Q60: 0.2482031864 | R60: 0.2482031864 | T60: 4557.355802 | U60: 799 | V60: 1.604162701 | W60: 2840.96 | X60: 2976.66066 | Y60: 2976.66066
B61: 26 | D61: 2027-12-10 | E61: 5 | F61: 2027-12-10 | G61: 30 | H61: 829 | I61: 70122.44752 | J61: 790.7343595 | K61: 821.4786469 | L61: 2945.142796 | M61: 0 | N61: 0 | O61: 4557.355802 | P61: 69331.71316 | Q61: 0.2355506052 | R61: 0.2355506052 | T61: 4557.355802 | U61: 829 | V61: 1.63288223 | W61: 2790.99 | X61: 2945.142796 | Y61: 2945.142796
B62: 27 | D62: 2028-01-10 | E62: 1 | F62: 2028-01-10 | G62: 31 | H62: 860 | I62: 69331.71316 | J62: 706.8287279 | K62: 839.4523566 | L62: 3011.074718 | M62: 0 | N62: 0 | O62: 4557.355802 | P62: 68624.88444 | Q62: 0.2231534773 | R62: 0.2231534773 | T62: 4557.355802 | U62: 860 | V62: 1.663099347 | W62: 2740.28 | X62: 3011.074718 | Y62: 3011.074718
B63: 28 | D63: 2028-02-10 | E63: 4 | F63: 2028-02-10 | G63: 31 | H63: 891 | I63: 68624.88444 | J63: 746.0844023 | K63: 830.8942377 | L63: 2980.377162 | M63: 0 | N63: 0 | O63: 4557.355802 | P63: 67878.80003 | Q63: 0.2114088155 | R63: 0.2114088155 | T63: 4557.355802 | U63: 891 | V63: 1.693875643 | W63: 2690.49 | X63: 2980.377162 | Y63: 2980.377162
B64: 29 | D64: 2028-03-10 | E64: 5 | F64: 2028-03-10 | G64: 29 | H64: 920 | I64: 67878.80003 | J64: 1034.839773 | K64: 768.5385363 | L64: 2753.977493 | M64: 0 | N64: 0 | O64: 4557.355802 | P64: 66843.96026 | Q64: 0.2009821104 | R64: 0.2009821104 | T64: 4557.355802 | U64: 920 | V64: 1.723181765 | W64: 2644.73 | X64: 2753.977493 | Y64: 2753.977493
B65: 30 | D65: 2028-04-10 | E65: 1 | F65: 2028-04-10 | G65: 31 | H65: 951 | I65: 66843.96026 | J65: 844.9929167 | K65: 809.3312195 | L65: 2903.031666 | M65: 0 | N65: 0 | O65: 4557.355802 | P65: 65998.96734 | Q65: 0.190404337 | R65: 0.190404337 | T65: 4557.355802 | U65: 951 | V65: 1.75506991 | W65: 2596.68 | X65: 2903.031666 | Y65: 2903.031666
B66: 31 | D66: 2028-05-10 | E66: 3 | F66: 2028-05-10 | G66: 30 | H66: 981 | I66: 65998.96734 | J66: 1012.226755 | K66: 773.1724192 | L66: 2771.956628 | M66: 0 | N66: 0 | O66: 4557.355802 | P66: 64986.74059 | Q66: 0.1806981509 | R66: 0.1806981509 | T66: 4557.355802 | U66: 981 | V66: 1.78649115 | W66: 2551.01 | X66: 2771.956628 | Y66: 2771.956628
B67: 32 | D67: 2028-06-10 | E67: 6 | F67: 2028-06-10 | G67: 31 | H67: 1012 | I67: 64986.74059 | J67: 948.1387111 | K67: 786.844433 | L67: 2822.372658 | M67: 0 | N67: 0 | O67: 4557.355802 | P67: 64038.60188 | Q67: 0.1711879308 | R67: 0.1711879308 | T67: 4557.355802 | U67: 1012 | V67: 1.819550859 | W67: 2504.66 | X67: 2822.372658 | Y67: 2822.372658
B68: 33 | D68: 2028-07-10 | E68: 1 | F68: 2028-07-10 | G68: 30 | H68: 1042 | I68: 64038.60188 | J68: 1117.527623 | K68: 750.2069007 | L68: 2689.621279 | M68: 0 | N68: 0 | O68: 4557.355802 | P68: 62921.07425 | Q68: 0.1624613338 | R68: 0.1624613338 | T68: 4557.355802 | U68: 1042 | V68: 1.852126509 | W68: 2460.61 | X68: 2689.621279 | Y68: 2689.621279
B69: 34 | D69: 2028-08-10 | E69: 4 | F69: 2028-08-10 | G69: 31 | H69: 1073 | I69: 62921.07425 | J69: 1062.861163 | K69: 761.8338225 | L69: 2732.660817 | M69: 0 | N69: 0 | O69: 4557.355802 | P69: 61858.21309 | Q69: 0.1539109251 | R69: 0.1539109251 | T69: 4557.355802 | U69: 1073 | V69: 1.886400826 | W69: 2415.9 | X69: 2732.660817 | Y69: 2732.660817
B70: 35 | D70: 2028-09-10 | E70: 7 | F70: 2028-09-11 | G70: 32 | H70: 1105 | I70: 61858.21309 | J70: 1009.0023 | K70: 773.2754996 | L70: 2775.078003 | M70: 0 | N70: 0 | O70: 4557.355802 | P70: 60849.21079 | Q70: 0.1455564467 | R70: 0.1455564467 | T70: 4557.355802 | U70: 1105 | V70: 1.922446178 | W70: 2370.6 | X70: 2775.078003 | Y70: 2775.078003
B71: 36 | D71: 2028-10-10 | E71: 2 | F71: 2028-10-10 | G71: 29 | H71: 1134 | I71: 60849.21079 | J71: 1399.634684 | K71: 688.9479981 | L71: 2468.77312 | M71: 0 | N71: 0 | O71: 4557.355802 | P71: 59449.57611 | Q71: 0.1383775874 | R71: 0.1383775874 | T71: 4557.355802 | U71: 1134 | V71: 1.95570685 | W71: 2330.29 | X71: 2468.77312 | Y71: 2468.77312
B72: 37 | D72: 2028-11-10 | E72: 5 | F72: 2028-11-10 | G72: 31 | H72: 1165 | I72: 59449.57611 | J72: 1255.660346 | K72: 719.8017254 | L72: 2581.893731 | M72: 0 | N72: 0 | O72: 4557.355802 | P72: 58193.91576 | Q72: 0.1310947165 | R72: 0.1310947165 | T72: 4557.355802 | U72: 1165 | V72: 1.991897961 | W72: 2287.95 | X72: 2581.893731 | Y72: 2581.893731
B73: 38 | D73: 2028-12-10 | E73: 7 | F73: 2028-12-11 | G73: 31 | H73: 1196 | I73: 58193.91576 | J73: 1325.396891 | K73: 704.5984802 | L73: 2527.360431 | M73: 0 | N73: 0 | O73: 4557.355802 | P73: 56868.51887 | Q73: 0.1241951462 | R73: 0.1241951462 | T73: 4557.355802 | U73: 1196 | V73: 2.028758803 | W73: 2246.38 | X73: 2527.360431 | Y73: 2527.360431
B74: 39 | D74: 2029-01-10 | E74: 3 | F74: 2029-01-10 | G74: 30 | H74: 1226 | I74: 56868.51887 | J74: 1502.668036 | K74: 666.2099739 | L74: 2388.477793 | M74: 0 | N74: 0 | O74: 4557.355802 | P74: 55365.85083 | Q74: 0.1178640866 | R74: 0.1178640866 | T74: 4557.355802 | U74: 1226 | V74: 2.06507993 | W74: 2206.87 | X74: 2388.477793 | Y74: 2388.477793
B75: 40 | D75: 2029-02-10 | E75: 6 | F75: 2029-02-10 | G75: 31 | H75: 1257 | I75: 55365.85083 | J75: 1482.461242 | K75: 670.3569238 | L75: 2404.537636 | M75: 0 | N75: 0 | O75: 4557.355802 | P75: 53883.38959 | Q75: 0.1116608499 | R75: 0.1116608499 | T75: 4557.355802 | U75: 1257 | V75: 2.103295032 | W75: 2166.77 | X75: 2404.537636 | Y75: 2404.537636
B76: 41 | D76: 2029-03-10 | E76: 6 | F76: 2029-03-10 | G76: 28 | H76: 1285 | I76: 53883.38959 | J76: 1859.113133 | K76: 588.927692 | L76: 2109.314977 | M76: 0 | N76: 0 | O76: 4557.355802 | P76: 52024.27646 | Q76: 0.1063390255 | R76: 0.1063390255 | T76: 4557.355802 | U76: 1285 | V76: 2.138419379 | W76: 2131.18 | X76: 2109.314977 | Y76: 2109.314977
B77: 42 | D77: 2029-04-10 | E77: 2 | F77: 2029-04-10 | G77: 31 | H77: 1316 | I77: 52024.27646 | J77: 1668.044751 | K77: 629.8979137 | L77: 2259.413137 | M77: 0 | N77: 0 | O77: 4557.355802 | P77: 50356.23171 | Q77: 0.1007423576 | R77: 0.1007423576 | T77: 4557.355802 | U77: 1316 | V77: 2.177991656 | W77: 2092.46 | X77: 2259.413137 | Y77: 2259.413137
B78: 43 | D78: 2029-05-10 | E78: 4 | F78: 2029-05-10 | G78: 30 | H78: 1346 | I78: 50356.23171 | J78: 1852.475 | K78: 589.9190708 | L78: 2114.961732 | M78: 0 | N78: 0 | O78: 4557.355802 | P78: 48503.75671 | Q78: 0.09560684395 | R78: 0.09560684395 | T78: 4557.355802 | U78: 1346 | V78: 2.216984518 | W78: 2055.66 | X78: 2114.961732 | Y78: 2114.961732
B79: 44 | D79: 2029-06-10 | E79: 7 | F79: 2029-06-11 | G79: 32 | H79: 1378 | I79: 48503.75671 | J79: 1775.049842 | K79: 606.3344676 | L79: 2175.971493 | M79: 0 | N79: 0 | O79: 4557.355802 | P79: 46728.70687 | Q79: 0.09041718434 | R79: 0.09041718434 | T79: 4557.355802 | U79: 1378 | V79: 2.259346663 | W79: 2017.11 | X79: 2175.971493 | Y79: 2175.971493
B80: 45 | D80: 2029-07-10 | E80: 2 | F80: 2029-07-10 | G80: 29 | H80: 1407 | I80: 46728.70687 | J80: 2132.40694 | K80: 529.0725817 | L80: 1895.876281 | M80: 0 | N80: 0 | O80: 4557.355802 | P80: 44596.29993 | Q80: 0.08595779929 | R80: 0.08595779929 | T80: 4557.355802 | U80: 1407 | V80: 2.298436126 | W80: 1982.81 | X80: 1895.876281 | Y80: 1895.876281
B81: 46 | D81: 2029-08-10 | E81: 5 | F81: 2029-08-10 | G81: 31 | H81: 1438 | I81: 44596.29993 | J81: 2080.577825 | K81: 539.9616908 | L81: 1936.816286 | M81: 0 | N81: 0 | O81: 4557.355802 | P81: 42515.7221 | Q81: 0.08143380398 | R81: 0.08143380398 | T81: 4557.355802 | U81: 1438 | V81: 2.340969575 | W81: 1946.78 | X81: 1936.816286 | Y81: 1936.816286
B82: 47 | D82: 2029-09-10 | E82: 1 | F82: 2029-09-10 | G82: 31 | H82: 1469 | I82: 42515.7221 | J82: 2196.128428 | K82: 514.7705355 | L82: 1846.456839 | M82: 0 | N82: 0 | O82: 4557.355802 | P82: 40319.59367 | Q82: 0.07714790846 | R82: 0.07714790846 | T82: 4557.355802 | U82: 1469 | V82: 2.384290122 | W82: 1911.41 | X82: 1846.456839 | Y82: 1846.456839
B83: 48 | D83: 2029-10-10 | E83: 3 | F83: 2029-10-10 | G83: 30 | H83: 1499 | I83: 40319.59367 | J83: 2391.592178 | K83: 472.3406901 | L83: 1693.422934 | M83: 0 | N83: 0 | O83: 4557.355802 | P83: 37928.00149 | Q83: 0.07321516211 | R83: 0.07321516211 | T83: 4557.355802 | U83: 1499 | V83: 2.426976371 | W83: 1877.79 | X83: 1693.422934 | Y83: 1693.422934
B84: 49 | D84: 2029-11-10 | E84: 6 | F84: 2029-11-10 | G84: 31 | H84: 1530 | I84: 37928.00149 | J84: 2450.92009 | K84: 459.2234748 | L84: 1647.212238 | M84: 0 | N84: 0 | O84: 4557.355802 | P84: 35477.08141 | Q84: 0.06936181718 | R84: 0.06936181718 | T84: 4557.355802 | U84: 1530 | V84: 2.471888507 | W84: 1843.67 | X84: 1647.212238 | Y84: 1647.212238
B85: 50 | D85: 2029-12-10 | E85: 1 | F85: 2029-12-10 | G85: 30 | H85: 1560 | I85: 35477.08141 | J85: 2651.707322 | K85: 415.6110612 | L85: 1490.037419 | M85: 0 | N85: 0 | O85: 4557.355802 | P85: 32825.37408 | Q85: 0.06582598012 | R85: 0.06582598012 | T85: 4557.355802 | U85: 1560 | V85: 2.516143041 | W85: 1811.25 | X85: 1490.037419 | Y85: 1490.037419
B86: 51 | D86: 2030-01-10 | E86: 4 | F86: 2030-01-10 | G86: 31 | H86: 1591 | I86: 32825.37408 | J86: 2734.308515 | K86: 397.4420416 | L86: 1425.605246 | M86: 0 | N86: 0 | O86: 4557.355802 | P86: 30091.06557 | Q86: 0.06236153097 | R86: 0.06236153097 | T86: 4557.355802 | U86: 1591 | V86: 2.562705241 | W86: 1778.34 | X86: 1425.605246 | Y86: 1425.605246
B87: 52 | D87: 2030-02-10 | E87: 7 | F87: 2030-02-11 | G87: 32 | H87: 1623 | I87: 30091.06557 | J87: 2831.251336 | K87: 376.1615895 | L87: 1349.942877 | M87: 0 | N87: 0 | O87: 4557.355802 | P87: 27259.81423 | Q87: 0.05897646872 | R87: 0.05897646872 | T87: 4557.355802 | U87: 1623 | V87: 2.611673419 | W87: 1744.99 | X87: 1349.942877 | Y87: 1349.942877
B88: 53 | D88: 2030-03-10 | E88: 7 | F88: 2030-03-11 | G88: 28 | H88: 1651 | I88: 27259.81423 | J88: 3192.304449 | K88: 297.9407866 | L88: 1067.110567 | M88: 0 | N88: 0 | O88: 4557.355802 | P88: 24067.50978 | Q88: 0.05616561416 | R88: 0.05616561416 | T88: 4557.355802 | U88: 1651 | V88: 2.65528752 | W88: 1716.33 | X88: 1067.110567 | Y88: 1067.110567
B89: 54 | D89: 2030-04-10 | E89: 3 | F89: 2030-04-10 | G89: 30 | H89: 1681 | I89: 24067.50978 | J89: 3264.571514 | K89: 281.9488776 | L89: 1010.835411 | M89: 0 | N89: 0 | O89: 4557.355802 | P89: 20802.93827 | Q89: 0.05330247608 | R89: 0.05330247608 | T89: 4557.355802 | U89: 1681 | V89: 2.70282547 | W89: 1686.15 | X89: 1010.835411 | Y89: 1010.835411
B90: 55 | D90: 2030-05-10 | E90: 5 | F90: 2030-05-10 | G90: 30 | H90: 1711 | I90: 20802.93827 | J90: 3439.927701 | K90: 243.7046935 | L90: 873.7234074 | M90: 0 | N90: 0 | O90: 4557.355802 | P90: 17363.01057 | Q90: 0.05058529136 | R90: 0.05058529136 | T90: 4557.355802 | U90: 1711 | V90: 2.751214498 | W90: 1656.49 | X90: 873.7234074 | Y90: 873.7234074
B91: 56 | D91: 2030-06-10 | E91: 1 | F91: 2030-06-10 | G91: 31 | H91: 1742 | I91: 17363.01057 | J91: 3593.053332 | K91: 210.2273184 | L91: 754.0751521 | M91: 0 | N91: 0 | O91: 4557.355802 | P91: 13769.95724 | Q91: 0.04792296609 | R91: 0.04792296609 | T91: 4557.355802 | U91: 1742 | V91: 2.802126786 | W91: 1626.39 | X91: 754.0751521 | Y91: 754.0751521
B92: 57 | D92: 2030-07-10 | E92: 3 | F92: 2030-07-10 | G92: 30 | H92: 1772 | I92: 13769.95724 | J92: 3817.703693 | K92: 161.313905 | L92: 578.338204 | M92: 0 | N92: 0 | O92: 4557.355802 | P92: 9952.253544 | Q92: 0.04548001108 | R92: 0.04548001108 | T92: 4557.355802 | U92: 1772 | V92: 2.852293618 | W92: 1597.79 | X92: 578.338204 | Y92: 578.338204
B93: 58 | D93: 2030-08-10 | E93: 6 | F93: 2030-08-10 | G93: 31 | H93: 1803 | I93: 9952.253544 | J93: 4004.630073 | K93: 120.4995854 | L93: 432.2261439 | M93: 0 | N93: 0 | O93: 4557.355802 | P93: 5947.62347 | Q93: 0.04308637887 | R93: 0.04308637887 | T93: 4557.355802 | U93: 1803 | V93: 2.905076415 | W93: 1568.76 | X93: 432.2261439 | Y93: 432.2261439
B94: 59 | D94: 2030-09-10 | E94: 2 | F94: 2030-09-10 | G94: 31 | H94: 1834 | I94: 5947.62347 | J94: 4227.038201 | K94: 72.01245016 | L94: 258.3051514 | M94: 0 | N94: 0 | O94: 4557.355802 | P94: 1720.58527 | Q94: 0.04081872454 | R94: 0.04081872454 | T94: 4557.355802 | U94: 1834 | V94: 2.958835977 | W94: 1540.25 | X94: 258.3051514 | Y94: 258.3051514
B95: 60 | D95: 2030-10-10 | E95: 4 | F95: 2030-10-10 | G95: 30 | H95: 1864 | I95: 1720.58527 | J95: 1720.58527 | K95: 20.15651349 | L95: 72.26458132 | M95: 0 | N95: 0 | O95: 1813.006364 | P95: 0 | Q95: 0.03873792037 | R95: 0.03873792037 | T95: 1813.006364 | U95: 1864 | V95: 3.011808394 | W95: 601.97 | X95: 72.26458132 | Y95: 72.26458132
B96: 61 | X96: 0 | Y96: 0
B97: 62 | X97: 0 | Y97: 0
B98: 63 | X98: 0 | Y98: 0
B99: 64 | X99: 0 | Y99: 0
B100: 65 | E100: =IF(B100<=$D$18,WEEKDAY(D100,2),"") ->  | J100: =IF(B100>D$18,"",O100-N100-M100-L100-K100) ->  | K100: =IF(B100>D$18,"",((1+D$23)^(G100/360)-1)*I100) ->  | M100: =IF(B100>D$18,"",D$25*D$26) ->  | N100: =IF(B100>D$18,"",D$27) ->  | O100: =IF(B100>D$18,"",IF(B100=D$18,I100+K100+L100+M100+N100,IF(AND(D$21=2,MONTH(F100)=7),2*D$28,IF(AND(D$22=2,MONTH(F100)=12),2*D$28,D$28)))) ->  | P100: =IF(B100>D$18,"",I100-J100) ->  | Q100: =IFERROR(IF(AND(MONTH(F100)=7,D$21=2),2/(1+D$24)^(H100/360),IF(AND(MONTH(F100)=12,D$22=2),2/(1+D$24)^(H100/360),1/(1+D$24)^(H100/360))),"") ->  | R100: =IFERROR(1/(1+D$24)^(H100/360),"") ->  | U100: =H100 ->  | V100: =IFERROR((1+D$30)^(U100/360),"") ->  | W100: =IFERROR(ROUND(T100/V100,2),"") ->  | X100: 0 | Y100: 0
B101: 66 | D101: =IF(B101>$D$18,"",EDATE(D100,1)) ->  | F101: =IF(E101=7,D101+1,D101) ->  | G101: =IF(B101>D$18,"",F101-F100) ->  | H101: =IFERROR(G101+H100,"") ->  | I101: =IF(B101>D$18,"",P100) ->  | L101: =IF(B101>D$18,"",((1+D$13)^(G101/30)-1)*I101) ->  | T101: =IFERROR(J101+K101+L101+M101+N101,"") ->  | X101: =IF(O101="",0,L101/((1+$I$9)^B101)) -> 0 | Y101: 0
B102: 67 | X102: 0 | Y102: =IF(O102="",0,L102/((1+$Q$28)^B102)) -> 0
B103: 68 | X103: 0 | Y103: 0
B104: 69 | X104: 0 | Y104: 0
B105: 70 | X105: 0 | Y105: 0
B106: 71 | X106: 0 | Y106: 0
B107: 72 | X107: 0 | Y107: 0
B108: 73 | X108: 0 | Y108: 0
B109: 74 | X109: 0 | Y109: 0
B110: 75 | X110: 0 | Y110: 0
B111: 76 | X111: 0 | Y111: 0
B112: 77 | X112: 0 | Y112: 0
B113: 78 | X113: 0 | Y113: 0
B114: 79 | X114: 0 | Y114: 0
B115: 80 | X115: 0 | Y115: 0
B116: 81 | X116: 0 | Y116: 0
B117: 82 | X117: 0 | Y117: 0
B118: 83 | X118: 0 | Y118: 0
B119: 84 | X119: 0 | Y119: 0
B120: 85 | X120: 0 | Y120: 0
B121: 86 | X121: 0 | Y121: 0
B122: 87 | X122: 0 | Y122: 0
B123: 88 | X123: 0 | Y123: 0
B124: 89 | X124: 0 | Y124: 0
B125: 90 | X125: 0 | Y125: 0
B126: 91 | X126: 0 | Y126: 0
B127: 92 | X127: 0 | Y127: 0
B128: 93 | X128: 0 | Y128: 0
B129: 94 | X129: 0 | Y129: 0
B130: 95 | X130: 0 | Y130: 0
B131: 96 | X131: 0 | Y131: 0
B132: 97 | X132: 0 | Y132: 0
B133: 98 | X133: 0 | Y133: 0
B134: 99 | X134: 0 | Y134: 0
B135: 100 | X135: 0 | Y135: 0
B136: 101 | X136: 0 | Y136: 0
B137: 102 | X137: 0 | Y137: 0
B138: 103 | X138: 0 | Y138: 0
B139: 104 | X139: 0 | Y139: 0
B140: 105 | X140: 0 | Y140: 0
B141: 106 | X141: 0 | Y141: 0
B142: 107 | X142: 0 | Y142: 0
B143: 108 | X143: 0 | Y143: 0
B144: 109 | X144: 0 | Y144: 0
B145: 110 | X145: 0 | Y145: 0
B146: 111 | X146: 0 | Y146: 0
B147: 112 | X147: 0 | Y147: 0
B148: 113 | X148: 0 | Y148: 0
B149: 114 | X149: 0 | Y149: 0
B150: 115 | X150: 0 | Y150: 0
B151: 116 | X151: 0 | Y151: 0
B152: 117 | X152: 0 | Y152: 0
B153: 118 | X153: 0 | Y153: 0
B154: 119 | X154: 0 | Y154: 0
B155: 120 | X155: 0 | Y155: 0
B156: 121 | X156: 0 | Y156: 0
B157: 122 | X157: 0 | Y157: 0
B158: 123 | X158: 0 | Y158: 0
B159: 124 | X159: 0 | Y159: 0
B160: 125 | X160: 0 | Y160: 0
B161: 126 | X161: 0 | Y161: 0
B162: 127 | X162: 0 | Y162: 0
B163: 128 | X163: 0 | Y163: 0
B164: 129 | E164: =IF(B164<=$D$18,WEEKDAY(D164,2),"") ->  | J164: =IF(B164>D$18,"",O164-N164-M164-L164-K164) ->  | K164: =IF(B164>D$18,"",((1+D$23)^(G164/360)-1)*I164) ->  | M164: =IF(B164>D$18,"",D$25*D$26) ->  | N164: =IF(B164>D$18,"",D$27) ->  | O164: =IF(B164>D$18,"",IF(B164=D$18,I164+K164+L164+M164+N164,IF(AND(D$21=2,MONTH(F164)=7),2*D$28,IF(AND(D$22=2,MONTH(F164)=12),2*D$28,D$28)))) ->  | P164: =IF(B164>D$18,"",I164-J164) ->  | Q164: =IFERROR(IF(AND(MONTH(F164)=7,D$21=2),2/(1+D$24)^(H164/360),IF(AND(MONTH(F164)=12,D$22=2),2/(1+D$24)^(H164/360),1/(1+D$24)^(H164/360))),"") ->  | R164: =IFERROR(1/(1+D$24)^(H164/360),"") ->  | U164: =H164 ->  | V164: =IFERROR((1+D$30)^(U164/360),"") ->  | W164: =IFERROR(ROUND(T164/V164,2),"") ->  | X164: 0 | Y164: 0
B165: 130 | D165: =IF(B165>$D$18,"",EDATE(D164,1)) ->  | F165: =IF(E165=7,D165+1,D165) ->  | G165: =IF(B165>D$18,"",F165-F164) ->  | H165: =IFERROR(G165+H164,"") ->  | I165: =IF(B165>D$18,"",P164) ->  | L165: =IF(B165>D$18,"",((1+D$13)^(G165/30)-1)*I165) ->  | T165: =IFERROR(J165+K165+L165+M165+N165,"") ->  | X165: =IF(O165="",0,L165/((1+$I$9)^B165)) -> 0 | Y165: 0
B166: 131 | X166: 0 | Y166: =IF(O166="",0,L166/((1+$Q$28)^B166)) -> 0
B167: 132 | X167: 0 | Y167: 0
B168: 133 | X168: 0 | Y168: 0
B169: 134 | X169: 0 | Y169: 0
B170: 135 | X170: 0 | Y170: 0
B171: 136 | X171: 0 | Y171: 0
B172: 137 | X172: 0 | Y172: 0
B173: 138 | X173: 0 | Y173: 0
B174: 139 | X174: 0 | Y174: 0
B175: 140 | X175: 0 | Y175: 0
B176: 141 | X176: 0 | Y176: 0
B177: 142 | X177: 0 | Y177: 0
B178: 143 | X178: 0 | Y178: 0
B179: 144 | X179: 0 | Y179: 0
B180: 145 | X180: 0 | Y180: 0
B181: 146 | X181: 0 | Y181: 0
B182: 147 | X182: 0 | Y182: 0
B183: 148 | X183: 0 | Y183: 0
B184: 149 | X184: 0 | Y184: 0
B185: 150 | X185: 0 | Y185: 0
B186: 151 | X186: 0 | Y186: 0
B187: 152 | X187: 0 | Y187: 0
B188: 153 | X188: 0 | Y188: 0
B189: 154 | X189: 0 | Y189: 0
B190: 155 | X190: 0 | Y190: 0
B191: 156 | X191: 0 | Y191: 0
B192: 157 | X192: 0 | Y192: 0
B193: 158 | X193: 0 | Y193: 0
B194: 159 | X194: 0 | Y194: 0
B195: 160 | X195: 0 | Y195: 0
B196: 161 | X196: 0 | Y196: 0
B197: 162 | X197: 0 | Y197: 0
B198: 163 | X198: 0 | Y198: 0
B199: 164 | X199: 0 | Y199: 0
B200: 165 | X200: 0 | Y200: 0
B201: 166 | X201: 0 | Y201: 0
B202: 167 | X202: 0 | Y202: 0
B203: 168 | X203: 0 | Y203: 0
B204: 169 | X204: 0 | Y204: 0
B205: 170 | X205: 0 | Y205: 0
B206: 171 | X206: 0 | Y206: 0
B207: 172 | X207: 0 | Y207: 0
B208: 173 | X208: 0 | Y208: 0
... 187 more rows

Sheet TarifarioBD (hidden)
A1: TARIFA | B1: PRODUCTO | C1: TIPO_SEGURO | D1: Valor | E1: < | F1: Columna2 | H1: TARIFA | I1: PRODUCTO | J1: TIPO_SEGURO
A2: TARIFA TITULAR | B2: Préstamos Personales (DXP) | C2: Seguro de Vida | D2: 0.042 | E2: Préstamos Personales (DXP)Seguro de VidaTARIFA TITULAR | F2: 0.042 | H2: TARIFA TITULAR | I2: Préstamos Personales (LD Y PA) (Clientes) | J2: Seguro de Vida
A3: TARIFA TITULAR | B3: Préstamos Personales (DXP) | C3: Seguro de Desgravamen | D3: 0.001832 | E3: Préstamos Personales (DXP)Seguro de DesgravamenTARIFA TITULAR | F3: 0.001832 | H3: TARIFA TITULAR + CONYUGE | I3: Préstamos Personales (DXP) | J3: Seguro de Desgravamen
A4: TARIFA TITULAR | B4: Préstamos Personales (DXP) | C4: Seguro de Desgravamen con Devolución | D4: 0.002342 | E4: Préstamos Personales (DXP)Seguro de Desgravamen con DevoluciónTARIFA TITULAR | F4: 0.002342 | J4: Seguro de Desgravamen con Devolución
A5: TARIFA TITULAR + CONYUGE | B5: Préstamos Personales (DXP) | C5: Seguro de Vida | D5: 0.084 | E5: Préstamos Personales (DXP)Seguro de VidaTARIFA TITULAR + CONYUGE | F5: 0.084 | J5: Exonerado
A6: TARIFA TITULAR + CONYUGE | B6: Préstamos Personales (DXP) | C6: Seguro de Desgravamen | D6: 0.003664 | E6: Préstamos Personales (DXP)Seguro de DesgravamenTARIFA TITULAR + CONYUGE | F6: 0.003664 | J6: Sin Seguro
A7: TARIFA TITULAR + CONYUGE | B7: Préstamos Personales (DXP) | C7: Seguro de Desgravamen con Devolución | D7: 0.004684 | E7: Préstamos Personales (DXP)Seguro de Desgravamen con DevoluciónTARIFA TITULAR + CONYUGE | F7: 0.004684
A8: TARIFA TITULAR | B8: Préstamos Personales (LD Y PA) (Clientes) | C8: Seguro de Vida | D8: 0.037 | E8: Préstamos Personales (LD Y PA) (Clientes)Seguro de VidaTARIFA TITULAR | F8: 0.037
A9: TARIFA TITULAR | B9: Préstamos Personales (LD Y PA) (Clientes) | C9: Seguro de Desgravamen | D9: 0.001995 | E9: Préstamos Personales (LD Y PA) (Clientes)Seguro de DesgravamenTARIFA TITULAR | F9: 0.001995
A10: TARIFA TITULAR | B10: Préstamos Personales (LD Y PA) (Clientes) | C10: Seguro de Desgravamen con Devolución | D10: 0.002594 | E10: Préstamos Personales (LD Y PA) (Clientes)Seguro de Desgravamen con DevoluciónTARIFA TITULAR | F10: 0.002594
A11: TARIFA TITULAR + CONYUGE | B11: Préstamos Personales (LD Y PA) (Clientes) | C11: Seguro de Vida | D11: 0.074 | E11: Préstamos Personales (LD Y PA) (Clientes)Seguro de VidaTARIFA TITULAR + CONYUGE | F11: 0.074
A12: TARIFA TITULAR + CONYUGE | B12: Préstamos Personales (LD Y PA) (Clientes) | C12: Seguro de Desgravamen | D12: 0.00399 | E12: Préstamos Personales (LD Y PA) (Clientes)Seguro de DesgravamenTARIFA TITULAR + CONYUGE | F12: 0.00399
A13: TARIFA TITULAR + CONYUGE | B13: Préstamos Personales (LD Y PA) (Clientes) | C13: Seguro de Desgravamen con Devolución | D13: 0.005188 | E13: Préstamos Personales (LD Y PA) (Clientes)Seguro de Desgravamen con DevoluciónTARIFA TITULAR + CONYUGE | F13: 0.005188
A14: TARIFA TITULAR | B14: Préstamos Personales (LD Y PA) (Empleados) | C14: Seguro de Vida | D14: 0.015866 | E14: Préstamos Personales (LD Y PA) (Empleados)Seguro de VidaTARIFA TITULAR | F14: 0.015866
A15: TARIFA TITULAR | B15: Préstamos Personales (LD Y PA) (Empleados) | C15: Seguro de Desgravamen | D15: 0.000855 | E15: Préstamos Personales (LD Y PA) (Empleados)Seguro de DesgravamenTARIFA TITULAR | F15: 0.000855
A16: TARIFA TITULAR | B16: Préstamos Personales (LD Y PA) (Empleados) | C16: Seguro de Desgravamen con Devolución | D16: 0.001112 | E16: Préstamos Personales (LD Y PA) (Empleados)Seguro de Desgravamen con DevoluciónTARIFA TITULAR | F16: 0.001112
A17: TARIFA TITULAR + CONYUGE | B17: Préstamos Personales (LD Y PA) (Empleados) | C17: Seguro de Vida | D17: 0.031732 | E17: Préstamos Personales (LD Y PA) (Empleados)Seguro de VidaTARIFA TITULAR + CONYUGE | F17: 0.031732
A18: TARIFA TITULAR + CONYUGE | B18: Préstamos Personales (LD Y PA) (Empleados) | C18: Seguro de Desgravamen | D18: 0.00171 | E18: Préstamos Personales (LD Y PA) (Empleados)Seguro de DesgravamenTARIFA TITULAR + CONYUGE | F18: 0.00171
A19: TARIFA TITULAR + CONYUGE | B19: Préstamos Personales (LD Y PA) (Empleados) | C19: Seguro de Desgravamen con Devolución | D19: 0.002224 | E19: Préstamos Personales (LD Y PA) (Empleados)Seguro de Desgravamen con DevoluciónTARIFA TITULAR + CONYUGE | F19: 0.002224
A20: TARIFA TITULAR | B20: Préstamos Personales (DXP) | C20: Exonerado | D20: 0 | E20: =_xlfn.CONCAT(TarifarioPrincipal[[#This Row],[PRODUCTO]],TarifarioPrincipal[[#This Row],[TIPO_SEGURO]],TarifarioPrincipal[[#This Row],[TARIFA]]) -> Préstamos Personales (DXP)ExoneradoTARIFA TITULAR | F20: 0
A21: TARIFA TITULAR + CONYUGE | B21: Préstamos Personales (DXP) | C21: Exonerado | D21: 0 | E21: =_xlfn.CONCAT(TarifarioPrincipal[[#This Row],[PRODUCTO]],TarifarioPrincipal[[#This Row],[TIPO_SEGURO]],TarifarioPrincipal[[#This Row],[TARIFA]]) -> Préstamos Personales (DXP)ExoneradoTARIFA TITULAR + CONYUGE | F21: 0
A22: TARIFA TITULAR | B22: Préstamos Personales (LD Y PA) (Clientes) | C22: Exonerado | D22: 0 | E22: =_xlfn.CONCAT(TarifarioPrincipal[[#This Row],[PRODUCTO]],TarifarioPrincipal[[#This Row],[TIPO_SEGURO]],TarifarioPrincipal[[#This Row],[TARIFA]]) -> Préstamos Personales (LD Y PA) (Clientes)ExoneradoTARIFA TITULAR | F22: 0
A23: TARIFA TITULAR + CONYUGE | B23: Préstamos Personales (LD Y PA) (Clientes) | C23: Exonerado | D23: 0 | E23: =_xlfn.CONCAT(TarifarioPrincipal[[#This Row],[PRODUCTO]],TarifarioPrincipal[[#This Row],[TIPO_SEGURO]],TarifarioPrincipal[[#This Row],[TARIFA]]) -> Préstamos Personales (LD Y PA) (Clientes)ExoneradoTARIFA TITULAR + CONYUGE | F23: 0
A24: TARIFA TITULAR | B24: Préstamos Personales (LD Y PA) (Empleados) | C24: Exonerado | D24: 0 | E24: =_xlfn.CONCAT(TarifarioPrincipal[[#This Row],[PRODUCTO]],TarifarioPrincipal[[#This Row],[TIPO_SEGURO]],TarifarioPrincipal[[#This Row],[TARIFA]]) -> Préstamos Personales (LD Y PA) (Empleados)ExoneradoTARIFA TITULAR | F24: 0
A25: TARIFA TITULAR + CONYUGE | B25: Préstamos Personales (LD Y PA) (Empleados) | C25: Exonerado | D25: 0 | E25: =_xlfn.CONCAT(TarifarioPrincipal[[#This Row],[PRODUCTO]],TarifarioPrincipal[[#This Row],[TIPO_SEGURO]],TarifarioPrincipal[[#This Row],[TARIFA]]) -> Préstamos Personales (LD Y PA) (Empleados)ExoneradoTARIFA TITULAR + CONYUGE | F25: 0
A26: TARIFA TITULAR | B26: Préstamos Personales (DXP) | C26: Sin Seguro | D26: 0 | E26: =CONCATENATE(B26,C26,A26) -> Préstamos Personales (DXP)Sin SeguroTARIFA TITULAR | F26: 0
A27: TARIFA TITULAR + CONYUGE | B27: Préstamos Personales (DXP) | C27: Sin Seguro | D27: 0 | E27: =CONCATENATE(B27,C27,A27) -> Préstamos Personales (DXP)Sin SeguroTARIFA TITULAR + CONYUGE | F27: 0
A28: TARIFA TITULAR | B28: Préstamos Personales (LD Y PA) (Clientes) | C28: Sin Seguro | D28: 0 | E28: Préstamos Personales (LD Y PA) (Clientes)Sin SeguroTARIFA TITULAR | F28: 0
A29: TARIFA TITULAR + CONYUGE | B29: Préstamos Personales (LD Y PA) (Clientes) | C29: Sin Seguro | D29: 0 | E29: Préstamos Personales (LD Y PA) (Clientes)Sin SeguroTARIFA TITULAR + CONYUGE | F29: 0
A30: TARIFA TITULAR | B30: Préstamos Personales (LD Y PA) (Empleados) | C30: Sin Seguro | D30: 0 | E30: Préstamos Personales (LD Y PA) (Empleados)Sin SeguroTARIFA TITULAR | F30: 0
A31: TARIFA TITULAR + CONYUGE | B31: Préstamos Personales (LD Y PA) (Empleados) | C31: Sin Seguro | D31: 0 | E31: Préstamos Personales (LD Y PA) (Empleados)Sin SeguroTARIFA TITULAR + CONYUGE | F31: 0

Sheet CostoCapBD (hidden)
A1: TARIFA | B1: CostoCapital
A2: TARIFA TITULAR | B2: 0.002871
A3: TARIFA TITULAR + CONYUGE | B3: 0.002871
